{"text_format":"3","workbook":"xlsx","n_sheets":4,"sheets":["BIUDŽETO SUV. NUO METŲ PRADŽIOS","MĖNESIO IŠLAIDŲ SUVESTINĖ","DETALIZUOTOS IŠLAIDOS","LABDARA IR RĖMIMAS"],"not_rendered":{"defined_names":15},"read":"whole","date_system":"1900"}

{"sheet":"BIUDŽETO SUV. NUO METŲ PRADŽIOS","index":0,"n_rows":17,"n_cols":7,"rows_kept":17,"merged":[[1,1,1,4]]}
[null,"MĖNESIO IŠLAIDŲ SUVESTINĖ"]
[null,"FAKTINIS ir BIUDŽETAS NUO METŲ PRADŽIOS",{"$nulls":3},"metai",{"$f":"YEAR(TODAY())","v":2019}]
[]
[null,"Didžiosios knygos kodas","Atsiskaitymo pavadinimas","Faktinis","Biudžetas","Liko EUR","Liko proc."]
[null,1000,"Reklama",{"$f":"SUMIF(MėNesio_IšLaidų_Suvestinė[Didžiosios knygos kodas],YearToDateTable[[#This Row],[Didžiosios knygos kodas]],MėNesio_IšLaidų_Suvestinė[Suma])","v":{"v":0,"d":"0.00 EUR"}},{"v":100000,"d":"100,000.00 EUR"},{"$f":"IF(YearToDateTable[[#This Row],[Biudžetas]]=\"\",\"\",YearToDateTable[[#This Row],[Biudžetas]]-YearToDateTable[[#This Row],[Faktinis]])","v":{"v":100000,"d":"100,000.00 EUR"}},{"$f":"IFERROR(YearToDateTable[[#This Row],[Liko EUR]]/YearToDateTable[[#This Row],[Biudžetas]],\"\")","v":{"v":1,"d":"100.00%"}}]
[null,2000,"Biuro įranga",{"$f":"SUMIF(MėNesio_IšLaidų_Suvestinė[Didžiosios knygos kodas],YearToDateTable[[#This Row],[Didžiosios knygos kodas]],MėNesio_IšLaidų_Suvestinė[Suma])","v":{"v":0,"d":"0.00 EUR"}},{"v":100000,"d":"100,000.00 EUR"},{"$f":"IF(YearToDateTable[[#This Row],[Biudžetas]]=\"\",\"\",YearToDateTable[[#This Row],[Biudžetas]]-YearToDateTable[[#This Row],[Faktinis]])","v":{"v":100000,"d":"100,000.00 EUR"}},{"$f":"IFERROR(YearToDateTable[[#This Row],[Liko EUR]]/YearToDateTable[[#This Row],[Biudžetas]],\"\")","v":{"v":1,"d":"100.00%"}}]
[null,3000,"Spausdintuvai",{"$f":"SUMIF(MėNesio_IšLaidų_Suvestinė[Didžiosios knygos kodas],YearToDateTable[[#This Row],[Didžiosios knygos kodas]],MėNesio_IšLaidų_Suvestinė[Suma])","v":{"v":0,"d":"0.00 EUR"}},{"v":100000,"d":"100,000.00 EUR"},{"$f":"IF(YearToDateTable[[#This Row],[Biudžetas]]=\"\",\"\",YearToDateTable[[#This Row],[Biudžetas]]-YearToDateTable[[#This Row],[Faktinis]])","v":{"v":100000,"d":"100,000.00 EUR"}},{"$f":"IFERROR(YearToDateTable[[#This Row],[Liko EUR]]/YearToDateTable[[#This Row],[Biudžetas]],\"\")","v":{"v":1,"d":"100.00%"}}]
[null,4000,"Serverio išlaidos",{"$f":"SUMIF(MėNesio_IšLaidų_Suvestinė[Didžiosios knygos kodas],YearToDateTable[[#This Row],[Didžiosios knygos kodas]],MėNesio_IšLaidų_Suvestinė[Suma])","v":{"v":0,"d":"0.00 EUR"}},{"v":100000,"d":"100,000.00 EUR"},{"$f":"IF(YearToDateTable[[#This Row],[Biudžetas]]=\"\",\"\",YearToDateTable[[#This Row],[Biudžetas]]-YearToDateTable[[#This Row],[Faktinis]])","v":{"v":100000,"d":"100,000.00 EUR"}},{"$f":"IFERROR(YearToDateTable[[#This Row],[Liko EUR]]/YearToDateTable[[#This Row],[Biudžetas]],\"\")","v":{"v":1,"d":"100.00%"}}]
[null,5000,"Atsargos",{"$f":"SUMIF(MėNesio_IšLaidų_Suvestinė[Didžiosios knygos kodas],YearToDateTable[[#This Row],[Didžiosios knygos kodas]],MėNesio_IšLaidų_Suvestinė[Suma])","v":{"v":0,"d":"0.00 EUR"}},{"v":50000,"d":"50,000.00 EUR"},{"$f":"IF(YearToDateTable[[#This Row],[Biudžetas]]=\"\",\"\",YearToDateTable[[#This Row],[Biudžetas]]-YearToDateTable[[#This Row],[Faktinis]])","v":{"v":50000,"d":"50,000.00 EUR"}},{"$f":"IFERROR(YearToDateTable[[#This Row],[Liko EUR]]/YearToDateTable[[#This Row],[Biudžetas]],\"\")","v":{"v":1,"d":"100.00%"}}]
[null,6000,"Su klientais susijusios išlaidos",{"$f":"SUMIF(MėNesio_IšLaidų_Suvestinė[Didžiosios knygos kodas],YearToDateTable[[#This Row],[Didžiosios knygos kodas]],MėNesio_IšLaidų_Suvestinė[Suma])","v":{"v":0,"d":"0.00 EUR"}},{"v":25000,"d":"25,000.00 EUR"},{"$f":"IF(YearToDateTable[[#This Row],[Biudžetas]]=\"\",\"\",YearToDateTable[[#This Row],[Biudžetas]]-YearToDateTable[[#This Row],[Faktinis]])","v":{"v":25000,"d":"25,000.00 EUR"}},{"$f":"IFERROR(YearToDateTable[[#This Row],[Liko EUR]]/YearToDateTable[[#This Row],[Biudžetas]],\"\")","v":{"v":1,"d":"100.00%"}}]
[null,7000,"Kompiuteriai",{"$f":"SUMIF(MėNesio_IšLaidų_Suvestinė[Didžiosios knygos kodas],YearToDateTable[[#This Row],[Didžiosios knygos kodas]],MėNesio_IšLaidų_Suvestinė[Suma])","v":{"v":0,"d":"0.00 EUR"}},{"v":75000,"d":"75,000.00 EUR"},{"$f":"IF(YearToDateTable[[#This Row],[Biudžetas]]=\"\",\"\",YearToDateTable[[#This Row],[Biudžetas]]-YearToDateTable[[#This Row],[Faktinis]])","v":{"v":75000,"d":"75,000.00 EUR"}},{"$f":"IFERROR(YearToDateTable[[#This Row],[Liko EUR]]/YearToDateTable[[#This Row],[Biudžetas]],\"\")","v":{"v":1,"d":"100.00%"}}]
[null,8000,"Medicinos planas",{"$f":"SUMIF(MėNesio_IšLaidų_Suvestinė[Didžiosios knygos kodas],YearToDateTable[[#This Row],[Didžiosios knygos kodas]],MėNesio_IšLaidų_Suvestinė[Suma])","v":{"v":0,"d":"0.00 EUR"}},{"v":65000,"d":"65,000.00 EUR"},{"$f":"IF(YearToDateTable[[#This Row],[Biudžetas]]=\"\",\"\",YearToDateTable[[#This Row],[Biudžetas]]-YearToDateTable[[#This Row],[Faktinis]])","v":{"v":65000,"d":"65,000.00 EUR"}},{"$f":"IFERROR(YearToDateTable[[#This Row],[Liko EUR]]/YearToDateTable[[#This Row],[Biudžetas]],\"\")","v":{"v":1,"d":"100.00%"}}]
[null,9000,"Statymo išlaidos",{"$f":"SUMIF(MėNesio_IšLaidų_Suvestinė[Didžiosios knygos kodas],YearToDateTable[[#This Row],[Didžiosios knygos kodas]],MėNesio_IšLaidų_Suvestinė[Suma])","v":{"v":0,"d":"0.00 EUR"}},{"v":125000,"d":"125,000.00 EUR"},{"$f":"IF(YearToDateTable[[#This Row],[Biudžetas]]=\"\",\"\",YearToDateTable[[#This Row],[Biudžetas]]-YearToDateTable[[#This Row],[Faktinis]])","v":{"v":125000,"d":"125,000.00 EUR"}},{"$f":"IFERROR(YearToDateTable[[#This Row],[Liko EUR]]/YearToDateTable[[#This Row],[Biudžetas]],\"\")","v":{"v":1,"d":"100.00%"}}]
[null,10000,"Rinkodara",{"$f":"SUMIF(MėNesio_IšLaidų_Suvestinė[Didžiosios knygos kodas],YearToDateTable[[#This Row],[Didžiosios knygos kodas]],MėNesio_IšLaidų_Suvestinė[Suma])","v":{"v":0,"d":"0.00 EUR"}},{"v":100000,"d":"100,000.00 EUR"},{"$f":"IF(YearToDateTable[[#This Row],[Biudžetas]]=\"\",\"\",YearToDateTable[[#This Row],[Biudžetas]]-YearToDateTable[[#This Row],[Faktinis]])","v":{"v":100000,"d":"100,000.00 EUR"}},{"$f":"IFERROR(YearToDateTable[[#This Row],[Liko EUR]]/YearToDateTable[[#This Row],[Biudžetas]],\"\")","v":{"v":1,"d":"100.00%"}}]
[null,11000,"Labdara",{"$f":"SUMIF(MėNesio_IšLaidų_Suvestinė[Didžiosios knygos kodas],YearToDateTable[[#This Row],[Didžiosios knygos kodas]],MėNesio_IšLaidų_Suvestinė[Suma])","v":{"v":0,"d":"0.00 EUR"}},{"v":250000,"d":"250,000.00 EUR"},{"$f":"IF(YearToDateTable[[#This Row],[Biudžetas]]=\"\",\"\",YearToDateTable[[#This Row],[Biudžetas]]-YearToDateTable[[#This Row],[Faktinis]])","v":{"v":250000,"d":"250,000.00 EUR"}},{"$f":"IFERROR(YearToDateTable[[#This Row],[Liko EUR]]/YearToDateTable[[#This Row],[Biudžetas]],\"\")","v":{"v":1,"d":"100.00%"}}]
[null,12000,"Rėmimas",{"$f":"SUMIF(MėNesio_IšLaidų_Suvestinė[Didžiosios knygos kodas],YearToDateTable[[#This Row],[Didžiosios knygos kodas]],MėNesio_IšLaidų_Suvestinė[Suma])","v":{"v":0,"d":"0.00 EUR"}},{"v":50000,"d":"50,000.00 EUR"},{"$f":"IF(YearToDateTable[[#This Row],[Biudžetas]]=\"\",\"\",YearToDateTable[[#This Row],[Biudžetas]]-YearToDateTable[[#This Row],[Faktinis]])","v":{"v":50000,"d":"50,000.00 EUR"}},{"$f":"IFERROR(YearToDateTable[[#This Row],[Liko EUR]]/YearToDateTable[[#This Row],[Biudžetas]],\"\")","v":{"v":1,"d":"100.00%"}}]
[null,"Suma",null,{"$f":"SUBTOTAL(109,YearToDateTable[Faktinis])","v":{"v":0,"d":"0.00 EUR"}},{"$f":"SUBTOTAL(109,YearToDateTable[Biudžetas])","v":{"v":1140000,"d":"1,140,000.00 EUR"}},{"$f":"SUBTOTAL(109,YearToDateTable[Liko EUR])","v":{"v":1140000,"d":"1,140,000.00 EUR"}},{"$f":"YearToDateTable[[#Totals],[Liko EUR]]/YearToDateTable[[#Totals],[Biudžetas]]","v":{"v":1,"d":"100.00%"}}]

{"sheet":"MĖNESIO IŠLAIDŲ SUVESTINĖ","index":1,"n_rows":18,"n_cols":17,"rows_kept":18,"merged":[[1,1,1,16]]}
[null,"BIUDŽETO SUV. NUO METŲ PRADŽIOS","DETALIZUOTOS IŠLAIDOS"]
[null,"MĖNESIO IŠLAIDŲ SUVESTINĖ"]
[null,"Duomenų filtras, skirtas filtruoti duomenis pagal atsiskaitymo pavadinimą, yra šiame langelyje.",null,{"$f":"DATEVALUE(\"1-SAU\"&_METAI)","v":{"v":43466,"d":"4346600.00%"}},{"$f":"DATEVALUE(\"1-VAS\"&_METAI)","v":{"v":43497,"d":"4349700.00%"}},{"$f":"DATEVALUE(\"1-KOV\"&_METAI)","v":{"v":43525,"d":"4352500.00%"}},{"$f":"DATEVALUE(\"1-BAL\"&_METAI)","v":{"v":43556,"d":"4355600.00%"}},{"$f":"DATEVALUE(\"1-GEG\"&_METAI)","v":{"v":43586,"d":"4358600.00%"}},{"$f":"DATEVALUE(\"1-BIR\"&_METAI)","v":{"v":43617,"d":"4361700.00%"}},{"$f":"DATEVALUE(\"1-LIE\"&_METAI)","v":{"v":43647,"d":"4364700.00%"}},{"$f":"DATEVALUE(\"1-RUGP\"&_METAI)","v":{"v":43678,"d":"4367800.00%"}},{"$f":"DATEVALUE(\"1-RUGS\"&_METAI)","v":{"v":43709,"d":"4370900.00%"}},{"$f":"DATEVALUE(\"1-SPAL\"&_METAI)","v":{"v":43739,"d":"4373900.00%"}},{"$f":"DATEVALUE(\"1-LAPKR\"&_METAI)","v":{"v":43770,"d":"4377000.00%"}},{"$f":"DATEVALUE(\"1-GRUOD\"&_METAI)","v":{"v":43800,"d":"4380000.00%"}}]
[{"$nulls":3},{"$f":"EOMONTH(D3,0)","v":{"v":43496,"d":"4349600.00%"}},{"$f":"EOMONTH(E3,0)","v":{"v":43524,"d":"4352400.00%"}},{"$f":"EOMONTH(F3,0)","v":{"v":43555,"d":"4355500.00%"}},{"$f":"EOMONTH(G3,0)","v":{"v":43585,"d":"4358500.00%"}},{"$f":"EOMONTH(H3,0)","v":{"v":43616,"d":"4361600.00%"}},{"$f":"EOMONTH(I3,0)","v":{"v":43646,"d":"4364600.00%"}},{"v":43677,"d":"4367700.00%"},{"v":43708,"d":"4370800.00%"},{"v":43738,"d":"4373800.00%"},{"v":43769,"d":"4376900.00%"},{"v":43799,"d":"4379900.00%"},{"v":43830,"d":"4383000.00%"}]
[null,"Didžiosios knygos kodas","Sąskaitos pavadinimas","Sausis","Vasaris","Kovas","Balandis","Gegužė","Birželis","Liepa","Rugpjūtis","Rugsėjis","Spalis","Lapkritis","Gruodis","Suma"," "]
[null,1000,"Reklama",{"$f":"SUMIFS(ItemizedExpenses[Čekio suma],ItemizedExpenses[Didžiosios knygos kodas],MėNesio_IšLaidų_Suvestinė[[#This Row],[Didžiosios knygos kodas]],ItemizedExpenses[Sąskaitos faktūros išrašymo data],\">=\"&D$3,ItemizedExpenses[Sąskaitos faktūros išrašymo data],\"<=\"&D$4)+SUMIFS(Kita[Čekio suma],Kita[Didžiosios knygos kodas],MėNesio_IšLaidų_Suvestinė[[#This Row],[Didžiosios knygos kodas]],Kita[Čekio prašymo inicijavimo data],\">=\"&DATEVALUE(MėNesio_IšLaidų_Suvestinė[[#Headers],[Sausis]]&\" 1, \"&_xlfn.SINGLE(_METAI)),Kita[Čekio prašymo inicijavimo data],\"<=\"&D$4)","v":{"v":0,"d":"0.00 EUR"}},{"$f":"SUMIFS(ItemizedExpenses[Čekio suma],ItemizedExpenses[Didžiosios knygos kodas],MėNesio_IšLaidų_Suvestinė[[#This Row],[Didžiosios knygos kodas]],ItemizedExpenses[Sąskaitos faktūros išrašymo data],\">=\"&E$3,ItemizedExpenses[Sąskaitos faktūros išrašymo data],\"<=\"&E$4)+SUMIFS(Kita[Čekio suma],Kita[Didžiosios knygos kodas],MėNesio_IšLaidų_Suvestinė[[#This Row],[Didžiosios knygos kodas]],Kita[Čekio prašymo inicijavimo data],\">=\"&DATEVALUE(MėNesio_IšLaidų_Suvestinė[[#Headers],[Vasaris]]&\" 1, \"&_xlfn.SINGLE(_METAI)),Kita[Čekio prašymo inicijavimo data],\"<=\"&E$4)","v":{"v":0,"d":"0.00 EUR"}},{"$f":"SUMIFS(ItemizedExpenses[Čekio suma],ItemizedExpenses[Didžiosios knygos kodas],MėNesio_IšLaidų_Suvestinė[[#This Row],[Didžiosios knygos kodas]],ItemizedExpenses[Sąskaitos faktūros išrašymo data],\">=\"&F$3,ItemizedExpenses[Sąskaitos faktūros išrašymo data],\"<=\"&F$4)+SUMIFS(Kita[Čekio suma],Kita[Didžiosios knygos kodas],MėNesio_IšLaidų_Suvestinė[[#This Row],[Didžiosios knygos kodas]],Kita[Čekio prašymo inicijavimo data],\">=\"&DATEVALUE(MėNesio_IšLaidų_Suvestinė[[#Headers],[Kovas]]&\" 1, \"&_xlfn.SINGLE(_METAI)),Kita[Čekio prašymo inicijavimo data],\"<=\"&F$4)","v":{"v":0,"d":"0.00 EUR"}},{"$f":"SUMIFS(ItemizedExpenses[Čekio suma],ItemizedExpenses[Didžiosios knygos kodas],MėNesio_IšLaidų_Suvestinė[[#This Row],[Didžiosios knygos kodas]],ItemizedExpenses[Sąskaitos faktūros išrašymo data],\">=\"&G$3,ItemizedExpenses[Sąskaitos faktūros išrašymo data],\"<=\"&G$4)+SUMIFS(Kita[Čekio suma],Kita[Didžiosios knygos kodas],MėNesio_IšLaidų_Suvestinė[[#This Row],[Didžiosios knygos kodas]],Kita[Čekio prašymo inicijavimo data],\">=\"&DATEVALUE(MėNesio_IšLaidų_Suvestinė[[#Headers],[Balandis]]&\" 1, \"&_xlfn.SINGLE(_METAI)),Kita[Čekio prašymo inicijavimo data],\"<=\"&G$4)","v":{"v":0,"d":"0.00 EUR"}},{"$f":"SUMIFS(ItemizedExpenses[Čekio suma],ItemizedExpenses[Didžiosios knygos kodas],MėNesio_IšLaidų_Suvestinė[[#This Row],[Didžiosios knygos kodas]],ItemizedExpenses[Sąskaitos faktūros išrašymo data],\">=\"&H$3,ItemizedExpenses[Sąskaitos faktūros išrašymo data],\"<=\"&H$4)+SUMIFS(Kita[Čekio suma],Kita[Didžiosios knygos kodas],MėNesio_IšLaidų_Suvestinė[[#This Row],[Didžiosios knygos kodas]],Kita[Čekio prašymo inicijavimo data],\">=\"&DATEVALUE(MėNesio_IšLaidų_Suvestinė[[#Headers],[Gegužė]]&\" 1, \"&_xlfn.SINGLE(_METAI)),Kita[Čekio prašymo inicijavimo data],\"<=\"&H$4)","v":{"v":0,"d":"0.00 EUR"}},{"$f":"SUMIFS(ItemizedExpenses[Čekio suma],ItemizedExpenses[Didžiosios knygos kodas],MėNesio_IšLaidų_Suvestinė[[#This Row],[Didžiosios knygos kodas]],ItemizedExpenses[Sąskaitos faktūros išrašymo data],\">=\"&I$3,ItemizedExpenses[Sąskaitos faktūros išrašymo data],\"<=\"&I$4)+SUMIFS(Kita[Čekio suma],Kita[Didžiosios knygos kodas],MėNesio_IšLaidų_Suvestinė[[#This Row],[Didžiosios knygos kodas]],Kita[Čekio prašymo inicijavimo data],\">=\"&DATEVALUE(MėNesio_IšLaidų_Suvestinė[[#Headers],[Birželis]]&\" 1, \"&_xlfn.SINGLE(_METAI)),Kita[Čekio prašymo inicijavimo data],\"<=\"&I$4)","v":{"v":0,"d":"0.00 EUR"}},{"$f":"SUMIFS(ItemizedExpenses[Čekio suma],ItemizedExpenses[Didžiosios knygos kodas],MėNesio_IšLaidų_Suvestinė[[#This Row],[Didžiosios knygos kodas]],ItemizedExpenses[Sąskaitos faktūros išrašymo data],\">=\"&J$3,ItemizedExpenses[Sąskaitos faktūros išrašymo data],\"<=\"&J$4)+SUMIFS(Kita[Čekio suma],Kita[Didžiosios knygos kodas],MėNesio_IšLaidų_Suvestinė[[#This Row],[Didžiosios knygos kodas]],Kita[Čekio prašymo inicijavimo data],\">=\"&DATEVALUE(MėNesio_IšLaidų_Suvestinė[[#Headers],[Liepa]]&\" 1, \"&_xlfn.SINGLE(_METAI)),Kita[Čekio prašymo inicijavimo data],\"<=\"&J$4)","v":{"v":0,"d":"0.00 EUR"}},{"$f":"SUMIFS(ItemizedExpenses[Čekio suma],ItemizedExpenses[Didžiosios knygos kodas],MėNesio_IšLaidų_Suvestinė[[#This Row],[Didžiosios knygos kodas]],ItemizedExpenses[Sąskaitos faktūros išrašymo data],\">=\"&K$3,ItemizedExpenses[Sąskaitos faktūros išrašymo data],\"<=\"&K$4)+SUMIFS(Kita[Čekio suma],Kita[Didžiosios knygos kodas],MėNesio_IšLaidų_Suvestinė[[#This Row],[Didžiosios knygos kodas]],Kita[Čekio prašymo inicijavimo data],\">=\"&DATEVALUE(MėNesio_IšLaidų_Suvestinė[[#Headers],[Rugpjūtis]]&\" 1, \"&_xlfn.SINGLE(_METAI)),Kita[Čekio prašymo inicijavimo data],\"<=\"&K$4)","v":{"v":0,"d":"0.00 EUR"}},{"$f":"SUMIFS(ItemizedExpenses[Čekio suma],ItemizedExpenses[Didžiosios knygos kodas],MėNesio_IšLaidų_Suvestinė[[#This Row],[Didžiosios knygos kodas]],ItemizedExpenses[Sąskaitos faktūros išrašymo data],\">=\"&L$3,ItemizedExpenses[Sąskaitos faktūros išrašymo data],\"<=\"&L$4)+SUMIFS(Kita[Čekio suma],Kita[Didžiosios knygos kodas],MėNesio_IšLaidų_Suvestinė[[#This Row],[Didžiosios knygos kodas]],Kita[Čekio prašymo inicijavimo data],\">=\"&DATEVALUE(MėNesio_IšLaidų_Suvestinė[[#Headers],[Rugsėjis]]&\" 1, \"&_xlfn.SINGLE(_METAI)),Kita[Čekio prašymo inicijavimo data],\"<=\"&L$4)","v":{"v":0,"d":"0.00 EUR"}},{"$f":"SUMIFS(ItemizedExpenses[Čekio suma],ItemizedExpenses[Didžiosios knygos kodas],MėNesio_IšLaidų_Suvestinė[[#This Row],[Didžiosios knygos kodas]],ItemizedExpenses[Sąskaitos faktūros išrašymo data],\">=\"&M$3,ItemizedExpenses[Sąskaitos faktūros išrašymo data],\"<=\"&M$4)+SUMIFS(Kita[Čekio suma],Kita[Didžiosios knygos kodas],MėNesio_IšLaidų_Suvestinė[[#This Row],[Didžiosios knygos kodas]],Kita[Čekio prašymo inicijavimo data],\">=\"&DATEVALUE(MėNesio_IšLaidų_Suvestinė[[#Headers],[Spalis]]&\" 1, \"&_xlfn.SINGLE(_METAI)),Kita[Čekio prašymo inicijavimo data],\"<=\"&M$4)","v":{"v":0,"d":"0.00 EUR"}},{"$f":"SUMIFS(ItemizedExpenses[Čekio suma],ItemizedExpenses[Didžiosios knygos kodas],MėNesio_IšLaidų_Suvestinė[[#This Row],[Didžiosios knygos kodas]],ItemizedExpenses[Sąskaitos faktūros išrašymo data],\">=\"&N$3,ItemizedExpenses[Sąskaitos faktūros išrašymo data],\"<=\"&N$4)+SUMIFS(Kita[Čekio suma],Kita[Didžiosios knygos kodas],MėNesio_IšLaidų_Suvestinė[[#This Row],[Didžiosios knygos kodas]],Kita[Čekio prašymo inicijavimo data],\">=\"&DATEVALUE(MėNesio_IšLaidų_Suvestinė[[#Headers],[Lapkritis]]&\" 1, \"&_xlfn.SINGLE(_METAI)),Kita[Čekio prašymo inicijavimo data],\"<=\"&N$4)","v":{"v":0,"d":"0.00 EUR"}},{"$f":"SUMIFS(ItemizedExpenses[Čekio suma],ItemizedExpenses[Didžiosios knygos kodas],MėNesio_IšLaidų_Suvestinė[[#This Row],[Didžiosios knygos kodas]],ItemizedExpenses[Sąskaitos faktūros išrašymo data],\">=\"&O$3,ItemizedExpenses[Sąskaitos faktūros išrašymo data],\"<=\"&O$4)+SUMIFS(Kita[Čekio suma],Kita[Didžiosios knygos kodas],MėNesio_IšLaidų_Suvestinė[[#This Row],[Didžiosios knygos kodas]],Kita[Čekio prašymo inicijavimo data],\">=\"&DATEVALUE(MėNesio_IšLaidų_Suvestinė[[#Headers],[Gruodis]]&\" 1, \"&_xlfn.SINGLE(_METAI)),Kita[Čekio prašymo inicijavimo data],\"<=\"&O$4)","v":{"v":0,"d":"0.00 EUR"}},{"$f":"SUM(MėNesio_IšLaidų_Suvestinė[[#This Row],[Sausis]:[Gruodis]])","v":{"v":0,"d":"0.00 EUR"}}]
[null,2000,"Biuro įranga",{"$f":"SUMIFS(ItemizedExpenses[Čekio suma],ItemizedExpenses[Didžiosios knygos kodas],MėNesio_IšLaidų_Suvestinė[[#This Row],[Didžiosios knygos kodas]],ItemizedExpenses[Sąskaitos faktūros išrašymo data],\">=\"&D$3,ItemizedExpenses[Sąskaitos faktūros išrašymo data],\"<=\"&D$4)+SUMIFS(Kita[Čekio suma],Kita[Didžiosios knygos kodas],MėNesio_IšLaidų_Suvestinė[[#This Row],[Didžiosios knygos kodas]],Kita[Čekio prašymo inicijavimo data],\">=\"&DATEVALUE(MėNesio_IšLaidų_Suvestinė[[#Headers],[Sausis]]&\" 1, \"&_xlfn.SINGLE(_METAI)),Kita[Čekio prašymo inicijavimo data],\"<=\"&D$4)","v":{"v":0,"d":"0.00 EUR"}},{"$f":"SUMIFS(ItemizedExpenses[Čekio suma],ItemizedExpenses[Didžiosios knygos kodas],MėNesio_IšLaidų_Suvestinė[[#This Row],[Didžiosios knygos kodas]],ItemizedExpenses[Sąskaitos faktūros išrašymo data],\">=\"&E$3,ItemizedExpenses[Sąskaitos faktūros išrašymo data],\"<=\"&E$4)+SUMIFS(Kita[Čekio suma],Kita[Didžiosios knygos kodas],MėNesio_IšLaidų_Suvestinė[[#This Row],[Didžiosios knygos kodas]],Kita[Čekio prašymo inicijavimo data],\">=\"&DATEVALUE(MėNesio_IšLaidų_Suvestinė[[#Headers],[Vasaris]]&\" 1, \"&_xlfn.SINGLE(_METAI)),Kita[Čekio prašymo inicijavimo data],\"<=\"&E$4)","v":{"v":0,"d":"0.00 EUR"}},{"$f":"SUMIFS(ItemizedExpenses[Čekio suma],ItemizedExpenses[Didžiosios knygos kodas],MėNesio_IšLaidų_Suvestinė[[#This Row],[Didžiosios knygos kodas]],ItemizedExpenses[Sąskaitos faktūros išrašymo data],\">=\"&F$3,ItemizedExpenses[Sąskaitos faktūros išrašymo data],\"<=\"&F$4)+SUMIFS(Kita[Čekio suma],Kita[Didžiosios knygos kodas],MėNesio_IšLaidų_Suvestinė[[#This Row],[Didžiosios knygos kodas]],Kita[Čekio prašymo inicijavimo data],\">=\"&DATEVALUE(MėNesio_IšLaidų_Suvestinė[[#Headers],[Kovas]]&\" 1, \"&_xlfn.SINGLE(_METAI)),Kita[Čekio prašymo inicijavimo data],\"<=\"&F$4)","v":{"v":0,"d":"0.00 EUR"}},{"$f":"SUMIFS(ItemizedExpenses[Čekio suma],ItemizedExpenses[Didžiosios knygos kodas],MėNesio_IšLaidų_Suvestinė[[#This Row],[Didžiosios knygos kodas]],ItemizedExpenses[Sąskaitos faktūros išrašymo data],\">=\"&G$3,ItemizedExpenses[Sąskaitos faktūros išrašymo data],\"<=\"&G$4)+SUMIFS(Kita[Čekio suma],Kita[Didžiosios knygos kodas],MėNesio_IšLaidų_Suvestinė[[#This Row],[Didžiosios knygos kodas]],Kita[Čekio prašymo inicijavimo data],\">=\"&DATEVALUE(MėNesio_IšLaidų_Suvestinė[[#Headers],[Balandis]]&\" 1, \"&_xlfn.SINGLE(_METAI)),Kita[Čekio prašymo inicijavimo data],\"<=\"&G$4)","v":{"v":0,"d":"0.00 EUR"}},{"$f":"SUMIFS(ItemizedExpenses[Čekio suma],ItemizedExpenses[Didžiosios knygos kodas],MėNesio_IšLaidų_Suvestinė[[#This Row],[Didžiosios knygos kodas]],ItemizedExpenses[Sąskaitos faktūros išrašymo data],\">=\"&H$3,ItemizedExpenses[Sąskaitos faktūros išrašymo data],\"<=\"&H$4)+SUMIFS(Kita[Čekio suma],Kita[Didžiosios knygos kodas],MėNesio_IšLaidų_Suvestinė[[#This Row],[Didžiosios knygos kodas]],Kita[Čekio prašymo inicijavimo data],\">=\"&DATEVALUE(MėNesio_IšLaidų_Suvestinė[[#Headers],[Gegužė]]&\" 1, \"&_xlfn.SINGLE(_METAI)),Kita[Čekio prašymo inicijavimo data],\"<=\"&H$4)","v":{"v":0,"d":"0.00 EUR"}},{"$f":"SUMIFS(ItemizedExpenses[Čekio suma],ItemizedExpenses[Didžiosios knygos kodas],MėNesio_IšLaidų_Suvestinė[[#This Row],[Didžiosios knygos kodas]],ItemizedExpenses[Sąskaitos faktūros išrašymo data],\">=\"&I$3,ItemizedExpenses[Sąskaitos faktūros išrašymo data],\"<=\"&I$4)+SUMIFS(Kita[Čekio suma],Kita[Didžiosios knygos kodas],MėNesio_IšLaidų_Suvestinė[[#This Row],[Didžiosios knygos kodas]],Kita[Čekio prašymo inicijavimo data],\">=\"&DATEVALUE(MėNesio_IšLaidų_Suvestinė[[#Headers],[Birželis]]&\" 1, \"&_xlfn.SINGLE(_METAI)),Kita[Čekio prašymo inicijavimo data],\"<=\"&I$4)","v":{"v":0,"d":"0.00 EUR"}},{"$f":"SUMIFS(ItemizedExpenses[Čekio suma],ItemizedExpenses[Didžiosios knygos kodas],MėNesio_IšLaidų_Suvestinė[[#This Row],[Didžiosios knygos kodas]],ItemizedExpenses[Sąskaitos faktūros išrašymo data],\">=\"&J$3,ItemizedExpenses[Sąskaitos faktūros išrašymo data],\"<=\"&J$4)+SUMIFS(Kita[Čekio suma],Kita[Didžiosios knygos kodas],MėNesio_IšLaidų_Suvestinė[[#This Row],[Didžiosios knygos kodas]],Kita[Čekio prašymo inicijavimo data],\">=\"&DATEVALUE(MėNesio_IšLaidų_Suvestinė[[#Headers],[Liepa]]&\" 1, \"&_xlfn.SINGLE(_METAI)),Kita[Čekio prašymo inicijavimo data],\"<=\"&J$4)","v":{"v":0,"d":"0.00 EUR"}},{"$f":"SUMIFS(ItemizedExpenses[Čekio suma],ItemizedExpenses[Didžiosios knygos kodas],MėNesio_IšLaidų_Suvestinė[[#This Row],[Didžiosios knygos kodas]],ItemizedExpenses[Sąskaitos faktūros išrašymo data],\">=\"&K$3,ItemizedExpenses[Sąskaitos faktūros išrašymo data],\"<=\"&K$4)+SUMIFS(Kita[Čekio suma],Kita[Didžiosios knygos kodas],MėNesio_IšLaidų_Suvestinė[[#This Row],[Didžiosios knygos kodas]],Kita[Čekio prašymo inicijavimo data],\">=\"&DATEVALUE(MėNesio_IšLaidų_Suvestinė[[#Headers],[Rugpjūtis]]&\" 1, \"&_xlfn.SINGLE(_METAI)),Kita[Čekio prašymo inicijavimo data],\"<=\"&K$4)","v":{"v":0,"d":"0.00 EUR"}},{"$f":"SUMIFS(ItemizedExpenses[Čekio suma],ItemizedExpenses[Didžiosios knygos kodas],MėNesio_IšLaidų_Suvestinė[[#This Row],[Didžiosios knygos kodas]],ItemizedExpenses[Sąskaitos faktūros išrašymo data],\">=\"&L$3,ItemizedExpenses[Sąskaitos faktūros išrašymo data],\"<=\"&L$4)+SUMIFS(Kita[Čekio suma],Kita[Didžiosios knygos kodas],MėNesio_IšLaidų_Suvestinė[[#This Row],[Didžiosios knygos kodas]],Kita[Čekio prašymo inicijavimo data],\">=\"&DATEVALUE(MėNesio_IšLaidų_Suvestinė[[#Headers],[Rugsėjis]]&\" 1, \"&_xlfn.SINGLE(_METAI)),Kita[Čekio prašymo inicijavimo data],\"<=\"&L$4)","v":{"v":0,"d":"0.00 EUR"}},{"$f":"SUMIFS(ItemizedExpenses[Čekio suma],ItemizedExpenses[Didžiosios knygos kodas],MėNesio_IšLaidų_Suvestinė[[#This Row],[Didžiosios knygos kodas]],ItemizedExpenses[Sąskaitos faktūros išrašymo data],\">=\"&M$3,ItemizedExpenses[Sąskaitos faktūros išrašymo data],\"<=\"&M$4)+SUMIFS(Kita[Čekio suma],Kita[Didžiosios knygos kodas],MėNesio_IšLaidų_Suvestinė[[#This Row],[Didžiosios knygos kodas]],Kita[Čekio prašymo inicijavimo data],\">=\"&DATEVALUE(MėNesio_IšLaidų_Suvestinė[[#Headers],[Spalis]]&\" 1, \"&_xlfn.SINGLE(_METAI)),Kita[Čekio prašymo inicijavimo data],\"<=\"&M$4)","v":{"v":0,"d":"0.00 EUR"}},{"$f":"SUMIFS(ItemizedExpenses[Čekio suma],ItemizedExpenses[Didžiosios knygos kodas],MėNesio_IšLaidų_Suvestinė[[#This Row],[Didžiosios knygos kodas]],ItemizedExpenses[Sąskaitos faktūros išrašymo data],\">=\"&N$3,ItemizedExpenses[Sąskaitos faktūros išrašymo data],\"<=\"&N$4)+SUMIFS(Kita[Čekio suma],Kita[Didžiosios knygos kodas],MėNesio_IšLaidų_Suvestinė[[#This Row],[Didžiosios knygos kodas]],Kita[Čekio prašymo inicijavimo data],\">=\"&DATEVALUE(MėNesio_IšLaidų_Suvestinė[[#Headers],[Lapkritis]]&\" 1, \"&_xlfn.SINGLE(_METAI)),Kita[Čekio prašymo inicijavimo data],\"<=\"&N$4)","v":{"v":0,"d":"0.00 EUR"}},{"$f":"SUMIFS(ItemizedExpenses[Čekio suma],ItemizedExpenses[Didžiosios knygos kodas],MėNesio_IšLaidų_Suvestinė[[#This Row],[Didžiosios knygos kodas]],ItemizedExpenses[Sąskaitos faktūros išrašymo data],\">=\"&O$3,ItemizedExpenses[Sąskaitos faktūros išrašymo data],\"<=\"&O$4)+SUMIFS(Kita[Čekio suma],Kita[Didžiosios knygos kodas],MėNesio_IšLaidų_Suvestinė[[#This Row],[Didžiosios knygos kodas]],Kita[Čekio prašymo inicijavimo data],\">=\"&DATEVALUE(MėNesio_IšLaidų_Suvestinė[[#Headers],[Gruodis]]&\" 1, \"&_xlfn.SINGLE(_METAI)),Kita[Čekio prašymo inicijavimo data],\"<=\"&O$4)","v":{"v":0,"d":"0.00 EUR"}},{"$f":"SUM(MėNesio_IšLaidų_Suvestinė[[#This Row],[Sausis]:[Gruodis]])","v":{"v":0,"d":"0.00 EUR"}}]
[null,3000,"Spausdintuvai",{"$f":"SUMIFS(ItemizedExpenses[Čekio suma],ItemizedExpenses[Didžiosios knygos kodas],MėNesio_IšLaidų_Suvestinė[[#This Row],[Didžiosios knygos kodas]],ItemizedExpenses[Sąskaitos faktūros išrašymo data],\">=\"&D$3,ItemizedExpenses[Sąskaitos faktūros išrašymo data],\"<=\"&D$4)+SUMIFS(Kita[Čekio suma],Kita[Didžiosios knygos kodas],MėNesio_IšLaidų_Suvestinė[[#This Row],[Didžiosios knygos kodas]],Kita[Čekio prašymo inicijavimo data],\">=\"&DATEVALUE(MėNesio_IšLaidų_Suvestinė[[#Headers],[Sausis]]&\" 1, \"&_xlfn.SINGLE(_METAI)),Kita[Čekio prašymo inicijavimo data],\"<=\"&D$4)","v":{"v":0,"d":"0.00 EUR"}},{"$f":"SUMIFS(ItemizedExpenses[Čekio suma],ItemizedExpenses[Didžiosios knygos kodas],MėNesio_IšLaidų_Suvestinė[[#This Row],[Didžiosios knygos kodas]],ItemizedExpenses[Sąskaitos faktūros išrašymo data],\">=\"&E$3,ItemizedExpenses[Sąskaitos faktūros išrašymo data],\"<=\"&E$4)+SUMIFS(Kita[Čekio suma],Kita[Didžiosios knygos kodas],MėNesio_IšLaidų_Suvestinė[[#This Row],[Didžiosios knygos kodas]],Kita[Čekio prašymo inicijavimo data],\">=\"&DATEVALUE(MėNesio_IšLaidų_Suvestinė[[#Headers],[Vasaris]]&\" 1, \"&_xlfn.SINGLE(_METAI)),Kita[Čekio prašymo inicijavimo data],\"<=\"&E$4)","v":{"v":0,"d":"0.00 EUR"}},{"$f":"SUMIFS(ItemizedExpenses[Čekio suma],ItemizedExpenses[Didžiosios knygos kodas],MėNesio_IšLaidų_Suvestinė[[#This Row],[Didžiosios knygos kodas]],ItemizedExpenses[Sąskaitos faktūros išrašymo data],\">=\"&F$3,ItemizedExpenses[Sąskaitos faktūros išrašymo data],\"<=\"&F$4)+SUMIFS(Kita[Čekio suma],Kita[Didžiosios knygos kodas],MėNesio_IšLaidų_Suvestinė[[#This Row],[Didžiosios knygos kodas]],Kita[Čekio prašymo inicijavimo data],\">=\"&DATEVALUE(MėNesio_IšLaidų_Suvestinė[[#Headers],[Kovas]]&\" 1, \"&_xlfn.SINGLE(_METAI)),Kita[Čekio prašymo inicijavimo data],\"<=\"&F$4)","v":{"v":0,"d":"0.00 EUR"}},{"$f":"SUMIFS(ItemizedExpenses[Čekio suma],ItemizedExpenses[Didžiosios knygos kodas],MėNesio_IšLaidų_Suvestinė[[#This Row],[Didžiosios knygos kodas]],ItemizedExpenses[Sąskaitos faktūros išrašymo data],\">=\"&G$3,ItemizedExpenses[Sąskaitos faktūros išrašymo data],\"<=\"&G$4)+SUMIFS(Kita[Čekio suma],Kita[Didžiosios knygos kodas],MėNesio_IšLaidų_Suvestinė[[#This Row],[Didžiosios knygos kodas]],Kita[Čekio prašymo inicijavimo data],\">=\"&DATEVALUE(MėNesio_IšLaidų_Suvestinė[[#Headers],[Balandis]]&\" 1, \"&_xlfn.SINGLE(_METAI)),Kita[Čekio prašymo inicijavimo data],\"<=\"&G$4)","v":{"v":0,"d":"0.00 EUR"}},{"$f":"SUMIFS(ItemizedExpenses[Čekio suma],ItemizedExpenses[Didžiosios knygos kodas],MėNesio_IšLaidų_Suvestinė[[#This Row],[Didžiosios knygos kodas]],ItemizedExpenses[Sąskaitos faktūros išrašymo data],\">=\"&H$3,ItemizedExpenses[Sąskaitos faktūros išrašymo data],\"<=\"&H$4)+SUMIFS(Kita[Čekio suma],Kita[Didžiosios knygos kodas],MėNesio_IšLaidų_Suvestinė[[#This Row],[Didžiosios knygos kodas]],Kita[Čekio prašymo inicijavimo data],\">=\"&DATEVALUE(MėNesio_IšLaidų_Suvestinė[[#Headers],[Gegužė]]&\" 1, \"&_xlfn.SINGLE(_METAI)),Kita[Čekio prašymo inicijavimo data],\"<=\"&H$4)","v":{"v":0,"d":"0.00 EUR"}},{"$f":"SUMIFS(ItemizedExpenses[Čekio suma],ItemizedExpenses[Didžiosios knygos kodas],MėNesio_IšLaidų_Suvestinė[[#This Row],[Didžiosios knygos kodas]],ItemizedExpenses[Sąskaitos faktūros išrašymo data],\">=\"&I$3,ItemizedExpenses[Sąskaitos faktūros išrašymo data],\"<=\"&I$4)+SUMIFS(Kita[Čekio suma],Kita[Didžiosios knygos kodas],MėNesio_IšLaidų_Suvestinė[[#This Row],[Didžiosios knygos kodas]],Kita[Čekio prašymo inicijavimo data],\">=\"&DATEVALUE(MėNesio_IšLaidų_Suvestinė[[#Headers],[Birželis]]&\" 1, \"&_xlfn.SINGLE(_METAI)),Kita[Čekio prašymo inicijavimo data],\"<=\"&I$4)","v":{"v":0,"d":"0.00 EUR"}},{"$f":"SUMIFS(ItemizedExpenses[Čekio suma],ItemizedExpenses[Didžiosios knygos kodas],MėNesio_IšLaidų_Suvestinė[[#This Row],[Didžiosios knygos kodas]],ItemizedExpenses[Sąskaitos faktūros išrašymo data],\">=\"&J$3,ItemizedExpenses[Sąskaitos faktūros išrašymo data],\"<=\"&J$4)+SUMIFS(Kita[Čekio suma],Kita[Didžiosios knygos kodas],MėNesio_IšLaidų_Suvestinė[[#This Row],[Didžiosios knygos kodas]],Kita[Čekio prašymo inicijavimo data],\">=\"&DATEVALUE(MėNesio_IšLaidų_Suvestinė[[#Headers],[Liepa]]&\" 1, \"&_xlfn.SINGLE(_METAI)),Kita[Čekio prašymo inicijavimo data],\"<=\"&J$4)","v":{"v":0,"d":"0.00 EUR"}},{"$f":"SUMIFS(ItemizedExpenses[Čekio suma],ItemizedExpenses[Didžiosios knygos kodas],MėNesio_IšLaidų_Suvestinė[[#This Row],[Didžiosios knygos kodas]],ItemizedExpenses[Sąskaitos faktūros išrašymo data],\">=\"&K$3,ItemizedExpenses[Sąskaitos faktūros išrašymo data],\"<=\"&K$4)+SUMIFS(Kita[Čekio suma],Kita[Didžiosios knygos kodas],MėNesio_IšLaidų_Suvestinė[[#This Row],[Didžiosios knygos kodas]],Kita[Čekio prašymo inicijavimo data],\">=\"&DATEVALUE(MėNesio_IšLaidų_Suvestinė[[#Headers],[Rugpjūtis]]&\" 1, \"&_xlfn.SINGLE(_METAI)),Kita[Čekio prašymo inicijavimo data],\"<=\"&K$4)","v":{"v":0,"d":"0.00 EUR"}},{"$f":"SUMIFS(ItemizedExpenses[Čekio suma],ItemizedExpenses[Didžiosios knygos kodas],MėNesio_IšLaidų_Suvestinė[[#This Row],[Didžiosios knygos kodas]],ItemizedExpenses[Sąskaitos faktūros išrašymo data],\">=\"&L$3,ItemizedExpenses[Sąskaitos faktūros išrašymo data],\"<=\"&L$4)+SUMIFS(Kita[Čekio suma],Kita[Didžiosios knygos kodas],MėNesio_IšLaidų_Suvestinė[[#This Row],[Didžiosios knygos kodas]],Kita[Čekio prašymo inicijavimo data],\">=\"&DATEVALUE(MėNesio_IšLaidų_Suvestinė[[#Headers],[Rugsėjis]]&\" 1, \"&_xlfn.SINGLE(_METAI)),Kita[Čekio prašymo inicijavimo data],\"<=\"&L$4)","v":{"v":0,"d":"0.00 EUR"}},{"$f":"SUMIFS(ItemizedExpenses[Čekio suma],ItemizedExpenses[Didžiosios knygos kodas],MėNesio_IšLaidų_Suvestinė[[#This Row],[Didžiosios knygos kodas]],ItemizedExpenses[Sąskaitos faktūros išrašymo data],\">=\"&M$3,ItemizedExpenses[Sąskaitos faktūros išrašymo data],\"<=\"&M$4)+SUMIFS(Kita[Čekio suma],Kita[Didžiosios knygos kodas],MėNesio_IšLaidų_Suvestinė[[#This Row],[Didžiosios knygos kodas]],Kita[Čekio prašymo inicijavimo data],\">=\"&DATEVALUE(MėNesio_IšLaidų_Suvestinė[[#Headers],[Spalis]]&\" 1, \"&_xlfn.SINGLE(_METAI)),Kita[Čekio prašymo inicijavimo data],\"<=\"&M$4)","v":{"v":0,"d":"0.00 EUR"}},{"$f":"SUMIFS(ItemizedExpenses[Čekio suma],ItemizedExpenses[Didžiosios knygos kodas],MėNesio_IšLaidų_Suvestinė[[#This Row],[Didžiosios knygos kodas]],ItemizedExpenses[Sąskaitos faktūros išrašymo data],\">=\"&N$3,ItemizedExpenses[Sąskaitos faktūros išrašymo data],\"<=\"&N$4)+SUMIFS(Kita[Čekio suma],Kita[Didžiosios knygos kodas],MėNesio_IšLaidų_Suvestinė[[#This Row],[Didžiosios knygos kodas]],Kita[Čekio prašymo inicijavimo data],\">=\"&DATEVALUE(MėNesio_IšLaidų_Suvestinė[[#Headers],[Lapkritis]]&\" 1, \"&_xlfn.SINGLE(_METAI)),Kita[Čekio prašymo inicijavimo data],\"<=\"&N$4)","v":{"v":0,"d":"0.00 EUR"}},{"$f":"SUMIFS(ItemizedExpenses[Čekio suma],ItemizedExpenses[Didžiosios knygos kodas],MėNesio_IšLaidų_Suvestinė[[#This Row],[Didžiosios knygos kodas]],ItemizedExpenses[Sąskaitos faktūros išrašymo data],\">=\"&O$3,ItemizedExpenses[Sąskaitos faktūros išrašymo data],\"<=\"&O$4)+SUMIFS(Kita[Čekio suma],Kita[Didžiosios knygos kodas],MėNesio_IšLaidų_Suvestinė[[#This Row],[Didžiosios knygos kodas]],Kita[Čekio prašymo inicijavimo data],\">=\"&DATEVALUE(MėNesio_IšLaidų_Suvestinė[[#Headers],[Gruodis]]&\" 1, \"&_xlfn.SINGLE(_METAI)),Kita[Čekio prašymo inicijavimo data],\"<=\"&O$4)","v":{"v":0,"d":"0.00 EUR"}},{"$f":"SUM(MėNesio_IšLaidų_Suvestinė[[#This Row],[Sausis]:[Gruodis]])","v":{"v":0,"d":"0.00 EUR"}}]
[null,4000,"Serverio išlaidos",{"$f":"SUMIFS(ItemizedExpenses[Čekio suma],ItemizedExpenses[Didžiosios knygos kodas],MėNesio_IšLaidų_Suvestinė[[#This Row],[Didžiosios knygos kodas]],ItemizedExpenses[Sąskaitos faktūros išrašymo data],\">=\"&D$3,ItemizedExpenses[Sąskaitos faktūros išrašymo data],\"<=\"&D$4)+SUMIFS(Kita[Čekio suma],Kita[Didžiosios knygos kodas],MėNesio_IšLaidų_Suvestinė[[#This Row],[Didžiosios knygos kodas]],Kita[Čekio prašymo inicijavimo data],\">=\"&DATEVALUE(MėNesio_IšLaidų_Suvestinė[[#Headers],[Sausis]]&\" 1, \"&_xlfn.SINGLE(_METAI)),Kita[Čekio prašymo inicijavimo data],\"<=\"&D$4)","v":{"v":0,"d":"0.00 EUR"}},{"$f":"SUMIFS(ItemizedExpenses[Čekio suma],ItemizedExpenses[Didžiosios knygos kodas],MėNesio_IšLaidų_Suvestinė[[#This Row],[Didžiosios knygos kodas]],ItemizedExpenses[Sąskaitos faktūros išrašymo data],\">=\"&E$3,ItemizedExpenses[Sąskaitos faktūros išrašymo data],\"<=\"&E$4)+SUMIFS(Kita[Čekio suma],Kita[Didžiosios knygos kodas],MėNesio_IšLaidų_Suvestinė[[#This Row],[Didžiosios knygos kodas]],Kita[Čekio prašymo inicijavimo data],\">=\"&DATEVALUE(MėNesio_IšLaidų_Suvestinė[[#Headers],[Vasaris]]&\" 1, \"&_xlfn.SINGLE(_METAI)),Kita[Čekio prašymo inicijavimo data],\"<=\"&E$4)","v":{"v":0,"d":"0.00 EUR"}},{"$f":"SUMIFS(ItemizedExpenses[Čekio suma],ItemizedExpenses[Didžiosios knygos kodas],MėNesio_IšLaidų_Suvestinė[[#This Row],[Didžiosios knygos kodas]],ItemizedExpenses[Sąskaitos faktūros išrašymo data],\">=\"&F$3,ItemizedExpenses[Sąskaitos faktūros išrašymo data],\"<=\"&F$4)+SUMIFS(Kita[Čekio suma],Kita[Didžiosios knygos kodas],MėNesio_IšLaidų_Suvestinė[[#This Row],[Didžiosios knygos kodas]],Kita[Čekio prašymo inicijavimo data],\">=\"&DATEVALUE(MėNesio_IšLaidų_Suvestinė[[#Headers],[Kovas]]&\" 1, \"&_xlfn.SINGLE(_METAI)),Kita[Čekio prašymo inicijavimo data],\"<=\"&F$4)","v":{"v":0,"d":"0.00 EUR"}},{"$f":"SUMIFS(ItemizedExpenses[Čekio suma],ItemizedExpenses[Didžiosios knygos kodas],MėNesio_IšLaidų_Suvestinė[[#This Row],[Didžiosios knygos kodas]],ItemizedExpenses[Sąskaitos faktūros išrašymo data],\">=\"&G$3,ItemizedExpenses[Sąskaitos faktūros išrašymo data],\"<=\"&G$4)+SUMIFS(Kita[Čekio suma],Kita[Didžiosios knygos kodas],MėNesio_IšLaidų_Suvestinė[[#This Row],[Didžiosios knygos kodas]],Kita[Čekio prašymo inicijavimo data],\">=\"&DATEVALUE(MėNesio_IšLaidų_Suvestinė[[#Headers],[Balandis]]&\" 1, \"&_xlfn.SINGLE(_METAI)),Kita[Čekio prašymo inicijavimo data],\"<=\"&G$4)","v":{"v":0,"d":"0.00 EUR"}},{"$f":"SUMIFS(ItemizedExpenses[Čekio suma],ItemizedExpenses[Didžiosios knygos kodas],MėNesio_IšLaidų_Suvestinė[[#This Row],[Didžiosios knygos kodas]],ItemizedExpenses[Sąskaitos faktūros išrašymo data],\">=\"&H$3,ItemizedExpenses[Sąskaitos faktūros išrašymo data],\"<=\"&H$4)+SUMIFS(Kita[Čekio suma],Kita[Didžiosios knygos kodas],MėNesio_IšLaidų_Suvestinė[[#This Row],[Didžiosios knygos kodas]],Kita[Čekio prašymo inicijavimo data],\">=\"&DATEVALUE(MėNesio_IšLaidų_Suvestinė[[#Headers],[Gegužė]]&\" 1, \"&_xlfn.SINGLE(_METAI)),Kita[Čekio prašymo inicijavimo data],\"<=\"&H$4)","v":{"v":0,"d":"0.00 EUR"}},{"$f":"SUMIFS(ItemizedExpenses[Čekio suma],ItemizedExpenses[Didžiosios knygos kodas],MėNesio_IšLaidų_Suvestinė[[#This Row],[Didžiosios knygos kodas]],ItemizedExpenses[Sąskaitos faktūros išrašymo data],\">=\"&I$3,ItemizedExpenses[Sąskaitos faktūros išrašymo data],\"<=\"&I$4)+SUMIFS(Kita[Čekio suma],Kita[Didžiosios knygos kodas],MėNesio_IšLaidų_Suvestinė[[#This Row],[Didžiosios knygos kodas]],Kita[Čekio prašymo inicijavimo data],\">=\"&DATEVALUE(MėNesio_IšLaidų_Suvestinė[[#Headers],[Birželis]]&\" 1, \"&_xlfn.SINGLE(_METAI)),Kita[Čekio prašymo inicijavimo data],\"<=\"&I$4)","v":{"v":0,"d":"0.00 EUR"}},{"$f":"SUMIFS(ItemizedExpenses[Čekio suma],ItemizedExpenses[Didžiosios knygos kodas],MėNesio_IšLaidų_Suvestinė[[#This Row],[Didžiosios knygos kodas]],ItemizedExpenses[Sąskaitos faktūros išrašymo data],\">=\"&J$3,ItemizedExpenses[Sąskaitos faktūros išrašymo data],\"<=\"&J$4)+SUMIFS(Kita[Čekio suma],Kita[Didžiosios knygos kodas],MėNesio_IšLaidų_Suvestinė[[#This Row],[Didžiosios knygos kodas]],Kita[Čekio prašymo inicijavimo data],\">=\"&DATEVALUE(MėNesio_IšLaidų_Suvestinė[[#Headers],[Liepa]]&\" 1, \"&_xlfn.SINGLE(_METAI)),Kita[Čekio prašymo inicijavimo data],\"<=\"&J$4)","v":{"v":0,"d":"0.00 EUR"}},{"$f":"SUMIFS(ItemizedExpenses[Čekio suma],ItemizedExpenses[Didžiosios knygos kodas],MėNesio_IšLaidų_Suvestinė[[#This Row],[Didžiosios knygos kodas]],ItemizedExpenses[Sąskaitos faktūros išrašymo data],\">=\"&K$3,ItemizedExpenses[Sąskaitos faktūros išrašymo data],\"<=\"&K$4)+SUMIFS(Kita[Čekio suma],Kita[Didžiosios knygos kodas],MėNesio_IšLaidų_Suvestinė[[#This Row],[Didžiosios knygos kodas]],Kita[Čekio prašymo inicijavimo data],\">=\"&DATEVALUE(MėNesio_IšLaidų_Suvestinė[[#Headers],[Rugpjūtis]]&\" 1, \"&_xlfn.SINGLE(_METAI)),Kita[Čekio prašymo inicijavimo data],\"<=\"&K$4)","v":{"v":0,"d":"0.00 EUR"}},{"$f":"SUMIFS(ItemizedExpenses[Čekio suma],ItemizedExpenses[Didžiosios knygos kodas],MėNesio_IšLaidų_Suvestinė[[#This Row],[Didžiosios knygos kodas]],ItemizedExpenses[Sąskaitos faktūros išrašymo data],\">=\"&L$3,ItemizedExpenses[Sąskaitos faktūros išrašymo data],\"<=\"&L$4)+SUMIFS(Kita[Čekio suma],Kita[Didžiosios knygos kodas],MėNesio_IšLaidų_Suvestinė[[#This Row],[Didžiosios knygos kodas]],Kita[Čekio prašymo inicijavimo data],\">=\"&DATEVALUE(MėNesio_IšLaidų_Suvestinė[[#Headers],[Rugsėjis]]&\" 1, \"&_xlfn.SINGLE(_METAI)),Kita[Čekio prašymo inicijavimo data],\"<=\"&L$4)","v":{"v":0,"d":"0.00 EUR"}},{"$f":"SUMIFS(ItemizedExpenses[Čekio suma],ItemizedExpenses[Didžiosios knygos kodas],MėNesio_IšLaidų_Suvestinė[[#This Row],[Didžiosios knygos kodas]],ItemizedExpenses[Sąskaitos faktūros išrašymo data],\">=\"&M$3,ItemizedExpenses[Sąskaitos faktūros išrašymo data],\"<=\"&M$4)+SUMIFS(Kita[Čekio suma],Kita[Didžiosios knygos kodas],MėNesio_IšLaidų_Suvestinė[[#This Row],[Didžiosios knygos kodas]],Kita[Čekio prašymo inicijavimo data],\">=\"&DATEVALUE(MėNesio_IšLaidų_Suvestinė[[#Headers],[Spalis]]&\" 1, \"&_xlfn.SINGLE(_METAI)),Kita[Čekio prašymo inicijavimo data],\"<=\"&M$4)","v":{"v":0,"d":"0.00 EUR"}},{"$f":"SUMIFS(ItemizedExpenses[Čekio suma],ItemizedExpenses[Didžiosios knygos kodas],MėNesio_IšLaidų_Suvestinė[[#This Row],[Didžiosios knygos kodas]],ItemizedExpenses[Sąskaitos faktūros išrašymo data],\">=\"&N$3,ItemizedExpenses[Sąskaitos faktūros išrašymo data],\"<=\"&N$4)+SUMIFS(Kita[Čekio suma],Kita[Didžiosios knygos kodas],MėNesio_IšLaidų_Suvestinė[[#This Row],[Didžiosios knygos kodas]],Kita[Čekio prašymo inicijavimo data],\">=\"&DATEVALUE(MėNesio_IšLaidų_Suvestinė[[#Headers],[Lapkritis]]&\" 1, \"&_xlfn.SINGLE(_METAI)),Kita[Čekio prašymo inicijavimo data],\"<=\"&N$4)","v":{"v":0,"d":"0.00 EUR"}},{"$f":"SUMIFS(ItemizedExpenses[Čekio suma],ItemizedExpenses[Didžiosios knygos kodas],MėNesio_IšLaidų_Suvestinė[[#This Row],[Didžiosios knygos kodas]],ItemizedExpenses[Sąskaitos faktūros išrašymo data],\">=\"&O$3,ItemizedExpenses[Sąskaitos faktūros išrašymo data],\"<=\"&O$4)+SUMIFS(Kita[Čekio suma],Kita[Didžiosios knygos kodas],MėNesio_IšLaidų_Suvestinė[[#This Row],[Didžiosios knygos kodas]],Kita[Čekio prašymo inicijavimo data],\">=\"&DATEVALUE(MėNesio_IšLaidų_Suvestinė[[#Headers],[Gruodis]]&\" 1, \"&_xlfn.SINGLE(_METAI)),Kita[Čekio prašymo inicijavimo data],\"<=\"&O$4)","v":{"v":0,"d":"0.00 EUR"}},{"$f":"SUM(MėNesio_IšLaidų_Suvestinė[[#This Row],[Sausis]:[Gruodis]])","v":{"v":0,"d":"0.00 EUR"}}]
[null,5000,"Atsargos",{"$f":"SUMIFS(ItemizedExpenses[Čekio suma],ItemizedExpenses[Didžiosios knygos kodas],MėNesio_IšLaidų_Suvestinė[[#This Row],[Didžiosios knygos kodas]],ItemizedExpenses[Sąskaitos faktūros išrašymo data],\">=\"&D$3,ItemizedExpenses[Sąskaitos faktūros išrašymo data],\"<=\"&D$4)+SUMIFS(Kita[Čekio suma],Kita[Didžiosios knygos kodas],MėNesio_IšLaidų_Suvestinė[[#This Row],[Didžiosios knygos kodas]],Kita[Čekio prašymo inicijavimo data],\">=\"&DATEVALUE(MėNesio_IšLaidų_Suvestinė[[#Headers],[Sausis]]&\" 1, \"&_xlfn.SINGLE(_METAI)),Kita[Čekio prašymo inicijavimo data],\"<=\"&D$4)","v":{"v":0,"d":"0.00 EUR"}},{"$f":"SUMIFS(ItemizedExpenses[Čekio suma],ItemizedExpenses[Didžiosios knygos kodas],MėNesio_IšLaidų_Suvestinė[[#This Row],[Didžiosios knygos kodas]],ItemizedExpenses[Sąskaitos faktūros išrašymo data],\">=\"&E$3,ItemizedExpenses[Sąskaitos faktūros išrašymo data],\"<=\"&E$4)+SUMIFS(Kita[Čekio suma],Kita[Didžiosios knygos kodas],MėNesio_IšLaidų_Suvestinė[[#This Row],[Didžiosios knygos kodas]],Kita[Čekio prašymo inicijavimo data],\">=\"&DATEVALUE(MėNesio_IšLaidų_Suvestinė[[#Headers],[Vasaris]]&\" 1, \"&_xlfn.SINGLE(_METAI)),Kita[Čekio prašymo inicijavimo data],\"<=\"&E$4)","v":{"v":0,"d":"0.00 EUR"}},{"$f":"SUMIFS(ItemizedExpenses[Čekio suma],ItemizedExpenses[Didžiosios knygos kodas],MėNesio_IšLaidų_Suvestinė[[#This Row],[Didžiosios knygos kodas]],ItemizedExpenses[Sąskaitos faktūros išrašymo data],\">=\"&F$3,ItemizedExpenses[Sąskaitos faktūros išrašymo data],\"<=\"&F$4)+SUMIFS(Kita[Čekio suma],Kita[Didžiosios knygos kodas],MėNesio_IšLaidų_Suvestinė[[#This Row],[Didžiosios knygos kodas]],Kita[Čekio prašymo inicijavimo data],\">=\"&DATEVALUE(MėNesio_IšLaidų_Suvestinė[[#Headers],[Kovas]]&\" 1, \"&_xlfn.SINGLE(_METAI)),Kita[Čekio prašymo inicijavimo data],\"<=\"&F$4)","v":{"v":0,"d":"0.00 EUR"}},{"$f":"SUMIFS(ItemizedExpenses[Čekio suma],ItemizedExpenses[Didžiosios knygos kodas],MėNesio_IšLaidų_Suvestinė[[#This Row],[Didžiosios knygos kodas]],ItemizedExpenses[Sąskaitos faktūros išrašymo data],\">=\"&G$3,ItemizedExpenses[Sąskaitos faktūros išrašymo data],\"<=\"&G$4)+SUMIFS(Kita[Čekio suma],Kita[Didžiosios knygos kodas],MėNesio_IšLaidų_Suvestinė[[#This Row],[Didžiosios knygos kodas]],Kita[Čekio prašymo inicijavimo data],\">=\"&DATEVALUE(MėNesio_IšLaidų_Suvestinė[[#Headers],[Balandis]]&\" 1, \"&_xlfn.SINGLE(_METAI)),Kita[Čekio prašymo inicijavimo data],\"<=\"&G$4)","v":{"v":0,"d":"0.00 EUR"}},{"$f":"SUMIFS(ItemizedExpenses[Čekio suma],ItemizedExpenses[Didžiosios knygos kodas],MėNesio_IšLaidų_Suvestinė[[#This Row],[Didžiosios knygos kodas]],ItemizedExpenses[Sąskaitos faktūros išrašymo data],\">=\"&H$3,ItemizedExpenses[Sąskaitos faktūros išrašymo data],\"<=\"&H$4)+SUMIFS(Kita[Čekio suma],Kita[Didžiosios knygos kodas],MėNesio_IšLaidų_Suvestinė[[#This Row],[Didžiosios knygos kodas]],Kita[Čekio prašymo inicijavimo data],\">=\"&DATEVALUE(MėNesio_IšLaidų_Suvestinė[[#Headers],[Gegužė]]&\" 1, \"&_xlfn.SINGLE(_METAI)),Kita[Čekio prašymo inicijavimo data],\"<=\"&H$4)","v":{"v":0,"d":"0.00 EUR"}},{"$f":"SUMIFS(ItemizedExpenses[Čekio suma],ItemizedExpenses[Didžiosios knygos kodas],MėNesio_IšLaidų_Suvestinė[[#This Row],[Didžiosios knygos kodas]],ItemizedExpenses[Sąskaitos faktūros išrašymo data],\">=\"&I$3,ItemizedExpenses[Sąskaitos faktūros išrašymo data],\"<=\"&I$4)+SUMIFS(Kita[Čekio suma],Kita[Didžiosios knygos kodas],MėNesio_IšLaidų_Suvestinė[[#This Row],[Didžiosios knygos kodas]],Kita[Čekio prašymo inicijavimo data],\">=\"&DATEVALUE(MėNesio_IšLaidų_Suvestinė[[#Headers],[Birželis]]&\" 1, \"&_xlfn.SINGLE(_METAI)),Kita[Čekio prašymo inicijavimo data],\"<=\"&I$4)","v":{"v":0,"d":"0.00 EUR"}},{"$f":"SUMIFS(ItemizedExpenses[Čekio suma],ItemizedExpenses[Didžiosios knygos kodas],MėNesio_IšLaidų_Suvestinė[[#This Row],[Didžiosios knygos kodas]],ItemizedExpenses[Sąskaitos faktūros išrašymo data],\">=\"&J$3,ItemizedExpenses[Sąskaitos faktūros išrašymo data],\"<=\"&J$4)+SUMIFS(Kita[Čekio suma],Kita[Didžiosios knygos kodas],MėNesio_IšLaidų_Suvestinė[[#This Row],[Didžiosios knygos kodas]],Kita[Čekio prašymo inicijavimo data],\">=\"&DATEVALUE(MėNesio_IšLaidų_Suvestinė[[#Headers],[Liepa]]&\" 1, \"&_xlfn.SINGLE(_METAI)),Kita[Čekio prašymo inicijavimo data],\"<=\"&J$4)","v":{"v":0,"d":"0.00 EUR"}},{"$f":"SUMIFS(ItemizedExpenses[Čekio suma],ItemizedExpenses[Didžiosios knygos kodas],MėNesio_IšLaidų_Suvestinė[[#This Row],[Didžiosios knygos kodas]],ItemizedExpenses[Sąskaitos faktūros išrašymo data],\">=\"&K$3,ItemizedExpenses[Sąskaitos faktūros išrašymo data],\"<=\"&K$4)+SUMIFS(Kita[Čekio suma],Kita[Didžiosios knygos kodas],MėNesio_IšLaidų_Suvestinė[[#This Row],[Didžiosios knygos kodas]],Kita[Čekio prašymo inicijavimo data],\">=\"&DATEVALUE(MėNesio_IšLaidų_Suvestinė[[#Headers],[Rugpjūtis]]&\" 1, \"&_xlfn.SINGLE(_METAI)),Kita[Čekio prašymo inicijavimo data],\"<=\"&K$4)","v":{"v":0,"d":"0.00 EUR"}},{"$f":"SUMIFS(ItemizedExpenses[Čekio suma],ItemizedExpenses[Didžiosios knygos kodas],MėNesio_IšLaidų_Suvestinė[[#This Row],[Didžiosios knygos kodas]],ItemizedExpenses[Sąskaitos faktūros išrašymo data],\">=\"&L$3,ItemizedExpenses[Sąskaitos faktūros išrašymo data],\"<=\"&L$4)+SUMIFS(Kita[Čekio suma],Kita[Didžiosios knygos kodas],MėNesio_IšLaidų_Suvestinė[[#This Row],[Didžiosios knygos kodas]],Kita[Čekio prašymo inicijavimo data],\">=\"&DATEVALUE(MėNesio_IšLaidų_Suvestinė[[#Headers],[Rugsėjis]]&\" 1, \"&_xlfn.SINGLE(_METAI)),Kita[Čekio prašymo inicijavimo data],\"<=\"&L$4)","v":{"v":0,"d":"0.00 EUR"}},{"$f":"SUMIFS(ItemizedExpenses[Čekio suma],ItemizedExpenses[Didžiosios knygos kodas],MėNesio_IšLaidų_Suvestinė[[#This Row],[Didžiosios knygos kodas]],ItemizedExpenses[Sąskaitos faktūros išrašymo data],\">=\"&M$3,ItemizedExpenses[Sąskaitos faktūros išrašymo data],\"<=\"&M$4)+SUMIFS(Kita[Čekio suma],Kita[Didžiosios knygos kodas],MėNesio_IšLaidų_Suvestinė[[#This Row],[Didžiosios knygos kodas]],Kita[Čekio prašymo inicijavimo data],\">=\"&DATEVALUE(MėNesio_IšLaidų_Suvestinė[[#Headers],[Spalis]]&\" 1, \"&_xlfn.SINGLE(_METAI)),Kita[Čekio prašymo inicijavimo data],\"<=\"&M$4)","v":{"v":0,"d":"0.00 EUR"}},{"$f":"SUMIFS(ItemizedExpenses[Čekio suma],ItemizedExpenses[Didžiosios knygos kodas],MėNesio_IšLaidų_Suvestinė[[#This Row],[Didžiosios knygos kodas]],ItemizedExpenses[Sąskaitos faktūros išrašymo data],\">=\"&N$3,ItemizedExpenses[Sąskaitos faktūros išrašymo data],\"<=\"&N$4)+SUMIFS(Kita[Čekio suma],Kita[Didžiosios knygos kodas],MėNesio_IšLaidų_Suvestinė[[#This Row],[Didžiosios knygos kodas]],Kita[Čekio prašymo inicijavimo data],\">=\"&DATEVALUE(MėNesio_IšLaidų_Suvestinė[[#Headers],[Lapkritis]]&\" 1, \"&_xlfn.SINGLE(_METAI)),Kita[Čekio prašymo inicijavimo data],\"<=\"&N$4)","v":{"v":0,"d":"0.00 EUR"}},{"$f":"SUMIFS(ItemizedExpenses[Čekio suma],ItemizedExpenses[Didžiosios knygos kodas],MėNesio_IšLaidų_Suvestinė[[#This Row],[Didžiosios knygos kodas]],ItemizedExpenses[Sąskaitos faktūros išrašymo data],\">=\"&O$3,ItemizedExpenses[Sąskaitos faktūros išrašymo data],\"<=\"&O$4)+SUMIFS(Kita[Čekio suma],Kita[Didžiosios knygos kodas],MėNesio_IšLaidų_Suvestinė[[#This Row],[Didžiosios knygos kodas]],Kita[Čekio prašymo inicijavimo data],\">=\"&DATEVALUE(MėNesio_IšLaidų_Suvestinė[[#Headers],[Gruodis]]&\" 1, \"&_xlfn.SINGLE(_METAI)),Kita[Čekio prašymo inicijavimo data],\"<=\"&O$4)","v":{"v":0,"d":"0.00 EUR"}},{"$f":"SUM(MėNesio_IšLaidų_Suvestinė[[#This Row],[Sausis]:[Gruodis]])","v":{"v":0,"d":"0.00 EUR"}}]
[null,6000,"Su klientais susijusios išlaidos",{"$f":"SUMIFS(ItemizedExpenses[Čekio suma],ItemizedExpenses[Didžiosios knygos kodas],MėNesio_IšLaidų_Suvestinė[[#This Row],[Didžiosios knygos kodas]],ItemizedExpenses[Sąskaitos faktūros išrašymo data],\">=\"&D$3,ItemizedExpenses[Sąskaitos faktūros išrašymo data],\"<=\"&D$4)+SUMIFS(Kita[Čekio suma],Kita[Didžiosios knygos kodas],MėNesio_IšLaidų_Suvestinė[[#This Row],[Didžiosios knygos kodas]],Kita[Čekio prašymo inicijavimo data],\">=\"&DATEVALUE(MėNesio_IšLaidų_Suvestinė[[#Headers],[Sausis]]&\" 1, \"&_xlfn.SINGLE(_METAI)),Kita[Čekio prašymo inicijavimo data],\"<=\"&D$4)","v":{"v":0,"d":"0.00 EUR"}},{"$f":"SUMIFS(ItemizedExpenses[Čekio suma],ItemizedExpenses[Didžiosios knygos kodas],MėNesio_IšLaidų_Suvestinė[[#This Row],[Didžiosios knygos kodas]],ItemizedExpenses[Sąskaitos faktūros išrašymo data],\">=\"&E$3,ItemizedExpenses[Sąskaitos faktūros išrašymo data],\"<=\"&E$4)+SUMIFS(Kita[Čekio suma],Kita[Didžiosios knygos kodas],MėNesio_IšLaidų_Suvestinė[[#This Row],[Didžiosios knygos kodas]],Kita[Čekio prašymo inicijavimo data],\">=\"&DATEVALUE(MėNesio_IšLaidų_Suvestinė[[#Headers],[Vasaris]]&\" 1, \"&_xlfn.SINGLE(_METAI)),Kita[Čekio prašymo inicijavimo data],\"<=\"&E$4)","v":{"v":0,"d":"0.00 EUR"}},{"$f":"SUMIFS(ItemizedExpenses[Čekio suma],ItemizedExpenses[Didžiosios knygos kodas],MėNesio_IšLaidų_Suvestinė[[#This Row],[Didžiosios knygos kodas]],ItemizedExpenses[Sąskaitos faktūros išrašymo data],\">=\"&F$3,ItemizedExpenses[Sąskaitos faktūros išrašymo data],\"<=\"&F$4)+SUMIFS(Kita[Čekio suma],Kita[Didžiosios knygos kodas],MėNesio_IšLaidų_Suvestinė[[#This Row],[Didžiosios knygos kodas]],Kita[Čekio prašymo inicijavimo data],\">=\"&DATEVALUE(MėNesio_IšLaidų_Suvestinė[[#Headers],[Kovas]]&\" 1, \"&_xlfn.SINGLE(_METAI)),Kita[Čekio prašymo inicijavimo data],\"<=\"&F$4)","v":{"v":0,"d":"0.00 EUR"}},{"$f":"SUMIFS(ItemizedExpenses[Čekio suma],ItemizedExpenses[Didžiosios knygos kodas],MėNesio_IšLaidų_Suvestinė[[#This Row],[Didžiosios knygos kodas]],ItemizedExpenses[Sąskaitos faktūros išrašymo data],\">=\"&G$3,ItemizedExpenses[Sąskaitos faktūros išrašymo data],\"<=\"&G$4)+SUMIFS(Kita[Čekio suma],Kita[Didžiosios knygos kodas],MėNesio_IšLaidų_Suvestinė[[#This Row],[Didžiosios knygos kodas]],Kita[Čekio prašymo inicijavimo data],\">=\"&DATEVALUE(MėNesio_IšLaidų_Suvestinė[[#Headers],[Balandis]]&\" 1, \"&_xlfn.SINGLE(_METAI)),Kita[Čekio prašymo inicijavimo data],\"<=\"&G$4)","v":{"v":0,"d":"0.00 EUR"}},{"$f":"SUMIFS(ItemizedExpenses[Čekio suma],ItemizedExpenses[Didžiosios knygos kodas],MėNesio_IšLaidų_Suvestinė[[#This Row],[Didžiosios knygos kodas]],ItemizedExpenses[Sąskaitos faktūros išrašymo data],\">=\"&H$3,ItemizedExpenses[Sąskaitos faktūros išrašymo data],\"<=\"&H$4)+SUMIFS(Kita[Čekio suma],Kita[Didžiosios knygos kodas],MėNesio_IšLaidų_Suvestinė[[#This Row],[Didžiosios knygos kodas]],Kita[Čekio prašymo inicijavimo data],\">=\"&DATEVALUE(MėNesio_IšLaidų_Suvestinė[[#Headers],[Gegužė]]&\" 1, \"&_xlfn.SINGLE(_METAI)),Kita[Čekio prašymo inicijavimo data],\"<=\"&H$4)","v":{"v":0,"d":"0.00 EUR"}},{"$f":"SUMIFS(ItemizedExpenses[Čekio suma],ItemizedExpenses[Didžiosios knygos kodas],MėNesio_IšLaidų_Suvestinė[[#This Row],[Didžiosios knygos kodas]],ItemizedExpenses[Sąskaitos faktūros išrašymo data],\">=\"&I$3,ItemizedExpenses[Sąskaitos faktūros išrašymo data],\"<=\"&I$4)+SUMIFS(Kita[Čekio suma],Kita[Didžiosios knygos kodas],MėNesio_IšLaidų_Suvestinė[[#This Row],[Didžiosios knygos kodas]],Kita[Čekio prašymo inicijavimo data],\">=\"&DATEVALUE(MėNesio_IšLaidų_Suvestinė[[#Headers],[Birželis]]&\" 1, \"&_xlfn.SINGLE(_METAI)),Kita[Čekio prašymo inicijavimo data],\"<=\"&I$4)","v":{"v":0,"d":"0.00 EUR"}},{"$f":"SUMIFS(ItemizedExpenses[Čekio suma],ItemizedExpenses[Didžiosios knygos kodas],MėNesio_IšLaidų_Suvestinė[[#This Row],[Didžiosios knygos kodas]],ItemizedExpenses[Sąskaitos faktūros išrašymo data],\">=\"&J$3,ItemizedExpenses[Sąskaitos faktūros išrašymo data],\"<=\"&J$4)+SUMIFS(Kita[Čekio suma],Kita[Didžiosios knygos kodas],MėNesio_IšLaidų_Suvestinė[[#This Row],[Didžiosios knygos kodas]],Kita[Čekio prašymo inicijavimo data],\">=\"&DATEVALUE(MėNesio_IšLaidų_Suvestinė[[#Headers],[Liepa]]&\" 1, \"&_xlfn.SINGLE(_METAI)),Kita[Čekio prašymo inicijavimo data],\"<=\"&J$4)","v":{"v":0,"d":"0.00 EUR"}},{"$f":"SUMIFS(ItemizedExpenses[Čekio suma],ItemizedExpenses[Didžiosios knygos kodas],MėNesio_IšLaidų_Suvestinė[[#This Row],[Didžiosios knygos kodas]],ItemizedExpenses[Sąskaitos faktūros išrašymo data],\">=\"&K$3,ItemizedExpenses[Sąskaitos faktūros išrašymo data],\"<=\"&K$4)+SUMIFS(Kita[Čekio suma],Kita[Didžiosios knygos kodas],MėNesio_IšLaidų_Suvestinė[[#This Row],[Didžiosios knygos kodas]],Kita[Čekio prašymo inicijavimo data],\">=\"&DATEVALUE(MėNesio_IšLaidų_Suvestinė[[#Headers],[Rugpjūtis]]&\" 1, \"&_xlfn.SINGLE(_METAI)),Kita[Čekio prašymo inicijavimo data],\"<=\"&K$4)","v":{"v":0,"d":"0.00 EUR"}},{"$f":"SUMIFS(ItemizedExpenses[Čekio suma],ItemizedExpenses[Didžiosios knygos kodas],MėNesio_IšLaidų_Suvestinė[[#This Row],[Didžiosios knygos kodas]],ItemizedExpenses[Sąskaitos faktūros išrašymo data],\">=\"&L$3,ItemizedExpenses[Sąskaitos faktūros išrašymo data],\"<=\"&L$4)+SUMIFS(Kita[Čekio suma],Kita[Didžiosios knygos kodas],MėNesio_IšLaidų_Suvestinė[[#This Row],[Didžiosios knygos kodas]],Kita[Čekio prašymo inicijavimo data],\">=\"&DATEVALUE(MėNesio_IšLaidų_Suvestinė[[#Headers],[Rugsėjis]]&\" 1, \"&_xlfn.SINGLE(_METAI)),Kita[Čekio prašymo inicijavimo data],\"<=\"&L$4)","v":{"v":0,"d":"0.00 EUR"}},{"$f":"SUMIFS(ItemizedExpenses[Čekio suma],ItemizedExpenses[Didžiosios knygos kodas],MėNesio_IšLaidų_Suvestinė[[#This Row],[Didžiosios knygos kodas]],ItemizedExpenses[Sąskaitos faktūros išrašymo data],\">=\"&M$3,ItemizedExpenses[Sąskaitos faktūros išrašymo data],\"<=\"&M$4)+SUMIFS(Kita[Čekio suma],Kita[Didžiosios knygos kodas],MėNesio_IšLaidų_Suvestinė[[#This Row],[Didžiosios knygos kodas]],Kita[Čekio prašymo inicijavimo data],\">=\"&DATEVALUE(MėNesio_IšLaidų_Suvestinė[[#Headers],[Spalis]]&\" 1, \"&_xlfn.SINGLE(_METAI)),Kita[Čekio prašymo inicijavimo data],\"<=\"&M$4)","v":{"v":0,"d":"0.00 EUR"}},{"$f":"SUMIFS(ItemizedExpenses[Čekio suma],ItemizedExpenses[Didžiosios knygos kodas],MėNesio_IšLaidų_Suvestinė[[#This Row],[Didžiosios knygos kodas]],ItemizedExpenses[Sąskaitos faktūros išrašymo data],\">=\"&N$3,ItemizedExpenses[Sąskaitos faktūros išrašymo data],\"<=\"&N$4)+SUMIFS(Kita[Čekio suma],Kita[Didžiosios knygos kodas],MėNesio_IšLaidų_Suvestinė[[#This Row],[Didžiosios knygos kodas]],Kita[Čekio prašymo inicijavimo data],\">=\"&DATEVALUE(MėNesio_IšLaidų_Suvestinė[[#Headers],[Lapkritis]]&\" 1, \"&_xlfn.SINGLE(_METAI)),Kita[Čekio prašymo inicijavimo data],\"<=\"&N$4)","v":{"v":0,"d":"0.00 EUR"}},{"$f":"SUMIFS(ItemizedExpenses[Čekio suma],ItemizedExpenses[Didžiosios knygos kodas],MėNesio_IšLaidų_Suvestinė[[#This Row],[Didžiosios knygos kodas]],ItemizedExpenses[Sąskaitos faktūros išrašymo data],\">=\"&O$3,ItemizedExpenses[Sąskaitos faktūros išrašymo data],\"<=\"&O$4)+SUMIFS(Kita[Čekio suma],Kita[Didžiosios knygos kodas],MėNesio_IšLaidų_Suvestinė[[#This Row],[Didžiosios knygos kodas]],Kita[Čekio prašymo inicijavimo data],\">=\"&DATEVALUE(MėNesio_IšLaidų_Suvestinė[[#Headers],[Gruodis]]&\" 1, \"&_xlfn.SINGLE(_METAI)),Kita[Čekio prašymo inicijavimo data],\"<=\"&O$4)","v":{"v":0,"d":"0.00 EUR"}},{"$f":"SUM(MėNesio_IšLaidų_Suvestinė[[#This Row],[Sausis]:[Gruodis]])","v":{"v":0,"d":"0.00 EUR"}}]
[null,7000,"Kompiuteriai",{"$f":"SUMIFS(ItemizedExpenses[Čekio suma],ItemizedExpenses[Didžiosios knygos kodas],MėNesio_IšLaidų_Suvestinė[[#This Row],[Didžiosios knygos kodas]],ItemizedExpenses[Sąskaitos faktūros išrašymo data],\">=\"&D$3,ItemizedExpenses[Sąskaitos faktūros išrašymo data],\"<=\"&D$4)+SUMIFS(Kita[Čekio suma],Kita[Didžiosios knygos kodas],MėNesio_IšLaidų_Suvestinė[[#This Row],[Didžiosios knygos kodas]],Kita[Čekio prašymo inicijavimo data],\">=\"&DATEVALUE(MėNesio_IšLaidų_Suvestinė[[#Headers],[Sausis]]&\" 1, \"&_xlfn.SINGLE(_METAI)),Kita[Čekio prašymo inicijavimo data],\"<=\"&D$4)","v":{"v":0,"d":"0.00 EUR"}},{"$f":"SUMIFS(ItemizedExpenses[Čekio suma],ItemizedExpenses[Didžiosios knygos kodas],MėNesio_IšLaidų_Suvestinė[[#This Row],[Didžiosios knygos kodas]],ItemizedExpenses[Sąskaitos faktūros išrašymo data],\">=\"&E$3,ItemizedExpenses[Sąskaitos faktūros išrašymo data],\"<=\"&E$4)+SUMIFS(Kita[Čekio suma],Kita[Didžiosios knygos kodas],MėNesio_IšLaidų_Suvestinė[[#This Row],[Didžiosios knygos kodas]],Kita[Čekio prašymo inicijavimo data],\">=\"&DATEVALUE(MėNesio_IšLaidų_Suvestinė[[#Headers],[Vasaris]]&\" 1, \"&_xlfn.SINGLE(_METAI)),Kita[Čekio prašymo inicijavimo data],\"<=\"&E$4)","v":{"v":0,"d":"0.00 EUR"}},{"$f":"SUMIFS(ItemizedExpenses[Čekio suma],ItemizedExpenses[Didžiosios knygos kodas],MėNesio_IšLaidų_Suvestinė[[#This Row],[Didžiosios knygos kodas]],ItemizedExpenses[Sąskaitos faktūros išrašymo data],\">=\"&F$3,ItemizedExpenses[Sąskaitos faktūros išrašymo data],\"<=\"&F$4)+SUMIFS(Kita[Čekio suma],Kita[Didžiosios knygos kodas],MėNesio_IšLaidų_Suvestinė[[#This Row],[Didžiosios knygos kodas]],Kita[Čekio prašymo inicijavimo data],\">=\"&DATEVALUE(MėNesio_IšLaidų_Suvestinė[[#Headers],[Kovas]]&\" 1, \"&_xlfn.SINGLE(_METAI)),Kita[Čekio prašymo inicijavimo data],\"<=\"&F$4)","v":{"v":0,"d":"0.00 EUR"}},{"$f":"SUMIFS(ItemizedExpenses[Čekio suma],ItemizedExpenses[Didžiosios knygos kodas],MėNesio_IšLaidų_Suvestinė[[#This Row],[Didžiosios knygos kodas]],ItemizedExpenses[Sąskaitos faktūros išrašymo data],\">=\"&G$3,ItemizedExpenses[Sąskaitos faktūros išrašymo data],\"<=\"&G$4)+SUMIFS(Kita[Čekio suma],Kita[Didžiosios knygos kodas],MėNesio_IšLaidų_Suvestinė[[#This Row],[Didžiosios knygos kodas]],Kita[Čekio prašymo inicijavimo data],\">=\"&DATEVALUE(MėNesio_IšLaidų_Suvestinė[[#Headers],[Balandis]]&\" 1, \"&_xlfn.SINGLE(_METAI)),Kita[Čekio prašymo inicijavimo data],\"<=\"&G$4)","v":{"v":0,"d":"0.00 EUR"}},{"$f":"SUMIFS(ItemizedExpenses[Čekio suma],ItemizedExpenses[Didžiosios knygos kodas],MėNesio_IšLaidų_Suvestinė[[#This Row],[Didžiosios knygos kodas]],ItemizedExpenses[Sąskaitos faktūros išrašymo data],\">=\"&H$3,ItemizedExpenses[Sąskaitos faktūros išrašymo data],\"<=\"&H$4)+SUMIFS(Kita[Čekio suma],Kita[Didžiosios knygos kodas],MėNesio_IšLaidų_Suvestinė[[#This Row],[Didžiosios knygos kodas]],Kita[Čekio prašymo inicijavimo data],\">=\"&DATEVALUE(MėNesio_IšLaidų_Suvestinė[[#Headers],[Gegužė]]&\" 1, \"&_xlfn.SINGLE(_METAI)),Kita[Čekio prašymo inicijavimo data],\"<=\"&H$4)","v":{"v":0,"d":"0.00 EUR"}},{"$f":"SUMIFS(ItemizedExpenses[Čekio suma],ItemizedExpenses[Didžiosios knygos kodas],MėNesio_IšLaidų_Suvestinė[[#This Row],[Didžiosios knygos kodas]],ItemizedExpenses[Sąskaitos faktūros išrašymo data],\">=\"&I$3,ItemizedExpenses[Sąskaitos faktūros išrašymo data],\"<=\"&I$4)+SUMIFS(Kita[Čekio suma],Kita[Didžiosios knygos kodas],MėNesio_IšLaidų_Suvestinė[[#This Row],[Didžiosios knygos kodas]],Kita[Čekio prašymo inicijavimo data],\">=\"&DATEVALUE(MėNesio_IšLaidų_Suvestinė[[#Headers],[Birželis]]&\" 1, \"&_xlfn.SINGLE(_METAI)),Kita[Čekio prašymo inicijavimo data],\"<=\"&I$4)","v":{"v":0,"d":"0.00 EUR"}},{"$f":"SUMIFS(ItemizedExpenses[Čekio suma],ItemizedExpenses[Didžiosios knygos kodas],MėNesio_IšLaidų_Suvestinė[[#This Row],[Didžiosios knygos kodas]],ItemizedExpenses[Sąskaitos faktūros išrašymo data],\">=\"&J$3,ItemizedExpenses[Sąskaitos faktūros išrašymo data],\"<=\"&J$4)+SUMIFS(Kita[Čekio suma],Kita[Didžiosios knygos kodas],MėNesio_IšLaidų_Suvestinė[[#This Row],[Didžiosios knygos kodas]],Kita[Čekio prašymo inicijavimo data],\">=\"&DATEVALUE(MėNesio_IšLaidų_Suvestinė[[#Headers],[Liepa]]&\" 1, \"&_xlfn.SINGLE(_METAI)),Kita[Čekio prašymo inicijavimo data],\"<=\"&J$4)","v":{"v":0,"d":"0.00 EUR"}},{"$f":"SUMIFS(ItemizedExpenses[Čekio suma],ItemizedExpenses[Didžiosios knygos kodas],MėNesio_IšLaidų_Suvestinė[[#This Row],[Didžiosios knygos kodas]],ItemizedExpenses[Sąskaitos faktūros išrašymo data],\">=\"&K$3,ItemizedExpenses[Sąskaitos faktūros išrašymo data],\"<=\"&K$4)+SUMIFS(Kita[Čekio suma],Kita[Didžiosios knygos kodas],MėNesio_IšLaidų_Suvestinė[[#This Row],[Didžiosios knygos kodas]],Kita[Čekio prašymo inicijavimo data],\">=\"&DATEVALUE(MėNesio_IšLaidų_Suvestinė[[#Headers],[Rugpjūtis]]&\" 1, \"&_xlfn.SINGLE(_METAI)),Kita[Čekio prašymo inicijavimo data],\"<=\"&K$4)","v":{"v":0,"d":"0.00 EUR"}},{"$f":"SUMIFS(ItemizedExpenses[Čekio suma],ItemizedExpenses[Didžiosios knygos kodas],MėNesio_IšLaidų_Suvestinė[[#This Row],[Didžiosios knygos kodas]],ItemizedExpenses[Sąskaitos faktūros išrašymo data],\">=\"&L$3,ItemizedExpenses[Sąskaitos faktūros išrašymo data],\"<=\"&L$4)+SUMIFS(Kita[Čekio suma],Kita[Didžiosios knygos kodas],MėNesio_IšLaidų_Suvestinė[[#This Row],[Didžiosios knygos kodas]],Kita[Čekio prašymo inicijavimo data],\">=\"&DATEVALUE(MėNesio_IšLaidų_Suvestinė[[#Headers],[Rugsėjis]]&\" 1, \"&_xlfn.SINGLE(_METAI)),Kita[Čekio prašymo inicijavimo data],\"<=\"&L$4)","v":{"v":0,"d":"0.00 EUR"}},{"$f":"SUMIFS(ItemizedExpenses[Čekio suma],ItemizedExpenses[Didžiosios knygos kodas],MėNesio_IšLaidų_Suvestinė[[#This Row],[Didžiosios knygos kodas]],ItemizedExpenses[Sąskaitos faktūros išrašymo data],\">=\"&M$3,ItemizedExpenses[Sąskaitos faktūros išrašymo data],\"<=\"&M$4)+SUMIFS(Kita[Čekio suma],Kita[Didžiosios knygos kodas],MėNesio_IšLaidų_Suvestinė[[#This Row],[Didžiosios knygos kodas]],Kita[Čekio prašymo inicijavimo data],\">=\"&DATEVALUE(MėNesio_IšLaidų_Suvestinė[[#Headers],[Spalis]]&\" 1, \"&_xlfn.SINGLE(_METAI)),Kita[Čekio prašymo inicijavimo data],\"<=\"&M$4)","v":{"v":0,"d":"0.00 EUR"}},{"$f":"SUMIFS(ItemizedExpenses[Čekio suma],ItemizedExpenses[Didžiosios knygos kodas],MėNesio_IšLaidų_Suvestinė[[#This Row],[Didžiosios knygos kodas]],ItemizedExpenses[Sąskaitos faktūros išrašymo data],\">=\"&N$3,ItemizedExpenses[Sąskaitos faktūros išrašymo data],\"<=\"&N$4)+SUMIFS(Kita[Čekio suma],Kita[Didžiosios knygos kodas],MėNesio_IšLaidų_Suvestinė[[#This Row],[Didžiosios knygos kodas]],Kita[Čekio prašymo inicijavimo data],\">=\"&DATEVALUE(MėNesio_IšLaidų_Suvestinė[[#Headers],[Lapkritis]]&\" 1, \"&_xlfn.SINGLE(_METAI)),Kita[Čekio prašymo inicijavimo data],\"<=\"&N$4)","v":{"v":0,"d":"0.00 EUR"}},{"$f":"SUMIFS(ItemizedExpenses[Čekio suma],ItemizedExpenses[Didžiosios knygos kodas],MėNesio_IšLaidų_Suvestinė[[#This Row],[Didžiosios knygos kodas]],ItemizedExpenses[Sąskaitos faktūros išrašymo data],\">=\"&O$3,ItemizedExpenses[Sąskaitos faktūros išrašymo data],\"<=\"&O$4)+SUMIFS(Kita[Čekio suma],Kita[Didžiosios knygos kodas],MėNesio_IšLaidų_Suvestinė[[#This Row],[Didžiosios knygos kodas]],Kita[Čekio prašymo inicijavimo data],\">=\"&DATEVALUE(MėNesio_IšLaidų_Suvestinė[[#Headers],[Gruodis]]&\" 1, \"&_xlfn.SINGLE(_METAI)),Kita[Čekio prašymo inicijavimo data],\"<=\"&O$4)","v":{"v":0,"d":"0.00 EUR"}},{"$f":"SUM(MėNesio_IšLaidų_Suvestinė[[#This Row],[Sausis]:[Gruodis]])","v":{"v":0,"d":"0.00 EUR"}}]
[null,8000,"Medicinos planas",{"$f":"SUMIFS(ItemizedExpenses[Čekio suma],ItemizedExpenses[Didžiosios knygos kodas],MėNesio_IšLaidų_Suvestinė[[#This Row],[Didžiosios knygos kodas]],ItemizedExpenses[Sąskaitos faktūros išrašymo data],\">=\"&D$3,ItemizedExpenses[Sąskaitos faktūros išrašymo data],\"<=\"&D$4)+SUMIFS(Kita[Čekio suma],Kita[Didžiosios knygos kodas],MėNesio_IšLaidų_Suvestinė[[#This Row],[Didžiosios knygos kodas]],Kita[Čekio prašymo inicijavimo data],\">=\"&DATEVALUE(MėNesio_IšLaidų_Suvestinė[[#Headers],[Sausis]]&\" 1, \"&_xlfn.SINGLE(_METAI)),Kita[Čekio prašymo inicijavimo data],\"<=\"&D$4)","v":{"v":0,"d":"0.00 EUR"}},{"$f":"SUMIFS(ItemizedExpenses[Čekio suma],ItemizedExpenses[Didžiosios knygos kodas],MėNesio_IšLaidų_Suvestinė[[#This Row],[Didžiosios knygos kodas]],ItemizedExpenses[Sąskaitos faktūros išrašymo data],\">=\"&E$3,ItemizedExpenses[Sąskaitos faktūros išrašymo data],\"<=\"&E$4)+SUMIFS(Kita[Čekio suma],Kita[Didžiosios knygos kodas],MėNesio_IšLaidų_Suvestinė[[#This Row],[Didžiosios knygos kodas]],Kita[Čekio prašymo inicijavimo data],\">=\"&DATEVALUE(MėNesio_IšLaidų_Suvestinė[[#Headers],[Vasaris]]&\" 1, \"&_xlfn.SINGLE(_METAI)),Kita[Čekio prašymo inicijavimo data],\"<=\"&E$4)","v":{"v":0,"d":"0.00 EUR"}},{"$f":"SUMIFS(ItemizedExpenses[Čekio suma],ItemizedExpenses[Didžiosios knygos kodas],MėNesio_IšLaidų_Suvestinė[[#This Row],[Didžiosios knygos kodas]],ItemizedExpenses[Sąskaitos faktūros išrašymo data],\">=\"&F$3,ItemizedExpenses[Sąskaitos faktūros išrašymo data],\"<=\"&F$4)+SUMIFS(Kita[Čekio suma],Kita[Didžiosios knygos kodas],MėNesio_IšLaidų_Suvestinė[[#This Row],[Didžiosios knygos kodas]],Kita[Čekio prašymo inicijavimo data],\">=\"&DATEVALUE(MėNesio_IšLaidų_Suvestinė[[#Headers],[Kovas]]&\" 1, \"&_xlfn.SINGLE(_METAI)),Kita[Čekio prašymo inicijavimo data],\"<=\"&F$4)","v":{"v":0,"d":"0.00 EUR"}},{"$f":"SUMIFS(ItemizedExpenses[Čekio suma],ItemizedExpenses[Didžiosios knygos kodas],MėNesio_IšLaidų_Suvestinė[[#This Row],[Didžiosios knygos kodas]],ItemizedExpenses[Sąskaitos faktūros išrašymo data],\">=\"&G$3,ItemizedExpenses[Sąskaitos faktūros išrašymo data],\"<=\"&G$4)+SUMIFS(Kita[Čekio suma],Kita[Didžiosios knygos kodas],MėNesio_IšLaidų_Suvestinė[[#This Row],[Didžiosios knygos kodas]],Kita[Čekio prašymo inicijavimo data],\">=\"&DATEVALUE(MėNesio_IšLaidų_Suvestinė[[#Headers],[Balandis]]&\" 1, \"&_xlfn.SINGLE(_METAI)),Kita[Čekio prašymo inicijavimo data],\"<=\"&G$4)","v":{"v":0,"d":"0.00 EUR"}},{"$f":"SUMIFS(ItemizedExpenses[Čekio suma],ItemizedExpenses[Didžiosios knygos kodas],MėNesio_IšLaidų_Suvestinė[[#This Row],[Didžiosios knygos kodas]],ItemizedExpenses[Sąskaitos faktūros išrašymo data],\">=\"&H$3,ItemizedExpenses[Sąskaitos faktūros išrašymo data],\"<=\"&H$4)+SUMIFS(Kita[Čekio suma],Kita[Didžiosios knygos kodas],MėNesio_IšLaidų_Suvestinė[[#This Row],[Didžiosios knygos kodas]],Kita[Čekio prašymo inicijavimo data],\">=\"&DATEVALUE(MėNesio_IšLaidų_Suvestinė[[#Headers],[Gegužė]]&\" 1, \"&_xlfn.SINGLE(_METAI)),Kita[Čekio prašymo inicijavimo data],\"<=\"&H$4)","v":{"v":0,"d":"0.00 EUR"}},{"$f":"SUMIFS(ItemizedExpenses[Čekio suma],ItemizedExpenses[Didžiosios knygos kodas],MėNesio_IšLaidų_Suvestinė[[#This Row],[Didžiosios knygos kodas]],ItemizedExpenses[Sąskaitos faktūros išrašymo data],\">=\"&I$3,ItemizedExpenses[Sąskaitos faktūros išrašymo data],\"<=\"&I$4)+SUMIFS(Kita[Čekio suma],Kita[Didžiosios knygos kodas],MėNesio_IšLaidų_Suvestinė[[#This Row],[Didžiosios knygos kodas]],Kita[Čekio prašymo inicijavimo data],\">=\"&DATEVALUE(MėNesio_IšLaidų_Suvestinė[[#Headers],[Birželis]]&\" 1, \"&_xlfn.SINGLE(_METAI)),Kita[Čekio prašymo inicijavimo data],\"<=\"&I$4)","v":{"v":0,"d":"0.00 EUR"}},{"$f":"SUMIFS(ItemizedExpenses[Čekio suma],ItemizedExpenses[Didžiosios knygos kodas],MėNesio_IšLaidų_Suvestinė[[#This Row],[Didžiosios knygos kodas]],ItemizedExpenses[Sąskaitos faktūros išrašymo data],\">=\"&J$3,ItemizedExpenses[Sąskaitos faktūros išrašymo data],\"<=\"&J$4)+SUMIFS(Kita[Čekio suma],Kita[Didžiosios knygos kodas],MėNesio_IšLaidų_Suvestinė[[#This Row],[Didžiosios knygos kodas]],Kita[Čekio prašymo inicijavimo data],\">=\"&DATEVALUE(MėNesio_IšLaidų_Suvestinė[[#Headers],[Liepa]]&\" 1, \"&_xlfn.SINGLE(_METAI)),Kita[Čekio prašymo inicijavimo data],\"<=\"&J$4)","v":{"v":0,"d":"0.00 EUR"}},{"$f":"SUMIFS(ItemizedExpenses[Čekio suma],ItemizedExpenses[Didžiosios knygos kodas],MėNesio_IšLaidų_Suvestinė[[#This Row],[Didžiosios knygos kodas]],ItemizedExpenses[Sąskaitos faktūros išrašymo data],\">=\"&K$3,ItemizedExpenses[Sąskaitos faktūros išrašymo data],\"<=\"&K$4)+SUMIFS(Kita[Čekio suma],Kita[Didžiosios knygos kodas],MėNesio_IšLaidų_Suvestinė[[#This Row],[Didžiosios knygos kodas]],Kita[Čekio prašymo inicijavimo data],\">=\"&DATEVALUE(MėNesio_IšLaidų_Suvestinė[[#Headers],[Rugpjūtis]]&\" 1, \"&_xlfn.SINGLE(_METAI)),Kita[Čekio prašymo inicijavimo data],\"<=\"&K$4)","v":{"v":0,"d":"0.00 EUR"}},{"$f":"SUMIFS(ItemizedExpenses[Čekio suma],ItemizedExpenses[Didžiosios knygos kodas],MėNesio_IšLaidų_Suvestinė[[#This Row],[Didžiosios knygos kodas]],ItemizedExpenses[Sąskaitos faktūros išrašymo data],\">=\"&L$3,ItemizedExpenses[Sąskaitos faktūros išrašymo data],\"<=\"&L$4)+SUMIFS(Kita[Čekio suma],Kita[Didžiosios knygos kodas],MėNesio_IšLaidų_Suvestinė[[#This Row],[Didžiosios knygos kodas]],Kita[Čekio prašymo inicijavimo data],\">=\"&DATEVALUE(MėNesio_IšLaidų_Suvestinė[[#Headers],[Rugsėjis]]&\" 1, \"&_xlfn.SINGLE(_METAI)),Kita[Čekio prašymo inicijavimo data],\"<=\"&L$4)","v":{"v":0,"d":"0.00 EUR"}},{"$f":"SUMIFS(ItemizedExpenses[Čekio suma],ItemizedExpenses[Didžiosios knygos kodas],MėNesio_IšLaidų_Suvestinė[[#This Row],[Didžiosios knygos kodas]],ItemizedExpenses[Sąskaitos faktūros išrašymo data],\">=\"&M$3,ItemizedExpenses[Sąskaitos faktūros išrašymo data],\"<=\"&M$4)+SUMIFS(Kita[Čekio suma],Kita[Didžiosios knygos kodas],MėNesio_IšLaidų_Suvestinė[[#This Row],[Didžiosios knygos kodas]],Kita[Čekio prašymo inicijavimo data],\">=\"&DATEVALUE(MėNesio_IšLaidų_Suvestinė[[#Headers],[Spalis]]&\" 1, \"&_xlfn.SINGLE(_METAI)),Kita[Čekio prašymo inicijavimo data],\"<=\"&M$4)","v":{"v":0,"d":"0.00 EUR"}},{"$f":"SUMIFS(ItemizedExpenses[Čekio suma],ItemizedExpenses[Didžiosios knygos kodas],MėNesio_IšLaidų_Suvestinė[[#This Row],[Didžiosios knygos kodas]],ItemizedExpenses[Sąskaitos faktūros išrašymo data],\">=\"&N$3,ItemizedExpenses[Sąskaitos faktūros išrašymo data],\"<=\"&N$4)+SUMIFS(Kita[Čekio suma],Kita[Didžiosios knygos kodas],MėNesio_IšLaidų_Suvestinė[[#This Row],[Didžiosios knygos kodas]],Kita[Čekio prašymo inicijavimo data],\">=\"&DATEVALUE(MėNesio_IšLaidų_Suvestinė[[#Headers],[Lapkritis]]&\" 1, \"&_xlfn.SINGLE(_METAI)),Kita[Čekio prašymo inicijavimo data],\"<=\"&N$4)","v":{"v":0,"d":"0.00 EUR"}},{"$f":"SUMIFS(ItemizedExpenses[Čekio suma],ItemizedExpenses[Didžiosios knygos kodas],MėNesio_IšLaidų_Suvestinė[[#This Row],[Didžiosios knygos kodas]],ItemizedExpenses[Sąskaitos faktūros išrašymo data],\">=\"&O$3,ItemizedExpenses[Sąskaitos faktūros išrašymo data],\"<=\"&O$4)+SUMIFS(Kita[Čekio suma],Kita[Didžiosios knygos kodas],MėNesio_IšLaidų_Suvestinė[[#This Row],[Didžiosios knygos kodas]],Kita[Čekio prašymo inicijavimo data],\">=\"&DATEVALUE(MėNesio_IšLaidų_Suvestinė[[#Headers],[Gruodis]]&\" 1, \"&_xlfn.SINGLE(_METAI)),Kita[Čekio prašymo inicijavimo data],\"<=\"&O$4)","v":{"v":0,"d":"0.00 EUR"}},{"$f":"SUM(MėNesio_IšLaidų_Suvestinė[[#This Row],[Sausis]:[Gruodis]])","v":{"v":0,"d":"0.00 EUR"}}]
[null,9000,"Statymo išlaidos",{"$f":"SUMIFS(ItemizedExpenses[Čekio suma],ItemizedExpenses[Didžiosios knygos kodas],MėNesio_IšLaidų_Suvestinė[[#This Row],[Didžiosios knygos kodas]],ItemizedExpenses[Sąskaitos faktūros išrašymo data],\">=\"&D$3,ItemizedExpenses[Sąskaitos faktūros išrašymo data],\"<=\"&D$4)+SUMIFS(Kita[Čekio suma],Kita[Didžiosios knygos kodas],MėNesio_IšLaidų_Suvestinė[[#This Row],[Didžiosios knygos kodas]],Kita[Čekio prašymo inicijavimo data],\">=\"&DATEVALUE(MėNesio_IšLaidų_Suvestinė[[#Headers],[Sausis]]&\" 1, \"&_xlfn.SINGLE(_METAI)),Kita[Čekio prašymo inicijavimo data],\"<=\"&D$4)","v":{"v":0,"d":"0.00 EUR"}},{"$f":"SUMIFS(ItemizedExpenses[Čekio suma],ItemizedExpenses[Didžiosios knygos kodas],MėNesio_IšLaidų_Suvestinė[[#This Row],[Didžiosios knygos kodas]],ItemizedExpenses[Sąskaitos faktūros išrašymo data],\">=\"&E$3,ItemizedExpenses[Sąskaitos faktūros išrašymo data],\"<=\"&E$4)+SUMIFS(Kita[Čekio suma],Kita[Didžiosios knygos kodas],MėNesio_IšLaidų_Suvestinė[[#This Row],[Didžiosios knygos kodas]],Kita[Čekio prašymo inicijavimo data],\">=\"&DATEVALUE(MėNesio_IšLaidų_Suvestinė[[#Headers],[Vasaris]]&\" 1, \"&_xlfn.SINGLE(_METAI)),Kita[Čekio prašymo inicijavimo data],\"<=\"&E$4)","v":{"v":0,"d":"0.00 EUR"}},{"$f":"SUMIFS(ItemizedExpenses[Čekio suma],ItemizedExpenses[Didžiosios knygos kodas],MėNesio_IšLaidų_Suvestinė[[#This Row],[Didžiosios knygos kodas]],ItemizedExpenses[Sąskaitos faktūros išrašymo data],\">=\"&F$3,ItemizedExpenses[Sąskaitos faktūros išrašymo data],\"<=\"&F$4)+SUMIFS(Kita[Čekio suma],Kita[Didžiosios knygos kodas],MėNesio_IšLaidų_Suvestinė[[#This Row],[Didžiosios knygos kodas]],Kita[Čekio prašymo inicijavimo data],\">=\"&DATEVALUE(MėNesio_IšLaidų_Suvestinė[[#Headers],[Kovas]]&\" 1, \"&_xlfn.SINGLE(_METAI)),Kita[Čekio prašymo inicijavimo data],\"<=\"&F$4)","v":{"v":0,"d":"0.00 EUR"}},{"$f":"SUMIFS(ItemizedExpenses[Čekio suma],ItemizedExpenses[Didžiosios knygos kodas],MėNesio_IšLaidų_Suvestinė[[#This Row],[Didžiosios knygos kodas]],ItemizedExpenses[Sąskaitos faktūros išrašymo data],\">=\"&G$3,ItemizedExpenses[Sąskaitos faktūros išrašymo data],\"<=\"&G$4)+SUMIFS(Kita[Čekio suma],Kita[Didžiosios knygos kodas],MėNesio_IšLaidų_Suvestinė[[#This Row],[Didžiosios knygos kodas]],Kita[Čekio prašymo inicijavimo data],\">=\"&DATEVALUE(MėNesio_IšLaidų_Suvestinė[[#Headers],[Balandis]]&\" 1, \"&_xlfn.SINGLE(_METAI)),Kita[Čekio prašymo inicijavimo data],\"<=\"&G$4)","v":{"v":0,"d":"0.00 EUR"}},{"$f":"SUMIFS(ItemizedExpenses[Čekio suma],ItemizedExpenses[Didžiosios knygos kodas],MėNesio_IšLaidų_Suvestinė[[#This Row],[Didžiosios knygos kodas]],ItemizedExpenses[Sąskaitos faktūros išrašymo data],\">=\"&H$3,ItemizedExpenses[Sąskaitos faktūros išrašymo data],\"<=\"&H$4)+SUMIFS(Kita[Čekio suma],Kita[Didžiosios knygos kodas],MėNesio_IšLaidų_Suvestinė[[#This Row],[Didžiosios knygos kodas]],Kita[Čekio prašymo inicijavimo data],\">=\"&DATEVALUE(MėNesio_IšLaidų_Suvestinė[[#Headers],[Gegužė]]&\" 1, \"&_xlfn.SINGLE(_METAI)),Kita[Čekio prašymo inicijavimo data],\"<=\"&H$4)","v":{"v":0,"d":"0.00 EUR"}},{"$f":"SUMIFS(ItemizedExpenses[Čekio suma],ItemizedExpenses[Didžiosios knygos kodas],MėNesio_IšLaidų_Suvestinė[[#This Row],[Didžiosios knygos kodas]],ItemizedExpenses[Sąskaitos faktūros išrašymo data],\">=\"&I$3,ItemizedExpenses[Sąskaitos faktūros išrašymo data],\"<=\"&I$4)+SUMIFS(Kita[Čekio suma],Kita[Didžiosios knygos kodas],MėNesio_IšLaidų_Suvestinė[[#This Row],[Didžiosios knygos kodas]],Kita[Čekio prašymo inicijavimo data],\">=\"&DATEVALUE(MėNesio_IšLaidų_Suvestinė[[#Headers],[Birželis]]&\" 1, \"&_xlfn.SINGLE(_METAI)),Kita[Čekio prašymo inicijavimo data],\"<=\"&I$4)","v":{"v":0,"d":"0.00 EUR"}},{"$f":"SUMIFS(ItemizedExpenses[Čekio suma],ItemizedExpenses[Didžiosios knygos kodas],MėNesio_IšLaidų_Suvestinė[[#This Row],[Didžiosios knygos kodas]],ItemizedExpenses[Sąskaitos faktūros išrašymo data],\">=\"&J$3,ItemizedExpenses[Sąskaitos faktūros išrašymo data],\"<=\"&J$4)+SUMIFS(Kita[Čekio suma],Kita[Didžiosios knygos kodas],MėNesio_IšLaidų_Suvestinė[[#This Row],[Didžiosios knygos kodas]],Kita[Čekio prašymo inicijavimo data],\">=\"&DATEVALUE(MėNesio_IšLaidų_Suvestinė[[#Headers],[Liepa]]&\" 1, \"&_xlfn.SINGLE(_METAI)),Kita[Čekio prašymo inicijavimo data],\"<=\"&J$4)","v":{"v":0,"d":"0.00 EUR"}},{"$f":"SUMIFS(ItemizedExpenses[Čekio suma],ItemizedExpenses[Didžiosios knygos kodas],MėNesio_IšLaidų_Suvestinė[[#This Row],[Didžiosios knygos kodas]],ItemizedExpenses[Sąskaitos faktūros išrašymo data],\">=\"&K$3,ItemizedExpenses[Sąskaitos faktūros išrašymo data],\"<=\"&K$4)+SUMIFS(Kita[Čekio suma],Kita[Didžiosios knygos kodas],MėNesio_IšLaidų_Suvestinė[[#This Row],[Didžiosios knygos kodas]],Kita[Čekio prašymo inicijavimo data],\">=\"&DATEVALUE(MėNesio_IšLaidų_Suvestinė[[#Headers],[Rugpjūtis]]&\" 1, \"&_xlfn.SINGLE(_METAI)),Kita[Čekio prašymo inicijavimo data],\"<=\"&K$4)","v":{"v":0,"d":"0.00 EUR"}},{"$f":"SUMIFS(ItemizedExpenses[Čekio suma],ItemizedExpenses[Didžiosios knygos kodas],MėNesio_IšLaidų_Suvestinė[[#This Row],[Didžiosios knygos kodas]],ItemizedExpenses[Sąskaitos faktūros išrašymo data],\">=\"&L$3,ItemizedExpenses[Sąskaitos faktūros išrašymo data],\"<=\"&L$4)+SUMIFS(Kita[Čekio suma],Kita[Didžiosios knygos kodas],MėNesio_IšLaidų_Suvestinė[[#This Row],[Didžiosios knygos kodas]],Kita[Čekio prašymo inicijavimo data],\">=\"&DATEVALUE(MėNesio_IšLaidų_Suvestinė[[#Headers],[Rugsėjis]]&\" 1, \"&_xlfn.SINGLE(_METAI)),Kita[Čekio prašymo inicijavimo data],\"<=\"&L$4)","v":{"v":0,"d":"0.00 EUR"}},{"$f":"SUMIFS(ItemizedExpenses[Čekio suma],ItemizedExpenses[Didžiosios knygos kodas],MėNesio_IšLaidų_Suvestinė[[#This Row],[Didžiosios knygos kodas]],ItemizedExpenses[Sąskaitos faktūros išrašymo data],\">=\"&M$3,ItemizedExpenses[Sąskaitos faktūros išrašymo data],\"<=\"&M$4)+SUMIFS(Kita[Čekio suma],Kita[Didžiosios knygos kodas],MėNesio_IšLaidų_Suvestinė[[#This Row],[Didžiosios knygos kodas]],Kita[Čekio prašymo inicijavimo data],\">=\"&DATEVALUE(MėNesio_IšLaidų_Suvestinė[[#Headers],[Spalis]]&\" 1, \"&_xlfn.SINGLE(_METAI)),Kita[Čekio prašymo inicijavimo data],\"<=\"&M$4)","v":{"v":0,"d":"0.00 EUR"}},{"$f":"SUMIFS(ItemizedExpenses[Čekio suma],ItemizedExpenses[Didžiosios knygos kodas],MėNesio_IšLaidų_Suvestinė[[#This Row],[Didžiosios knygos kodas]],ItemizedExpenses[Sąskaitos faktūros išrašymo data],\">=\"&N$3,ItemizedExpenses[Sąskaitos faktūros išrašymo data],\"<=\"&N$4)+SUMIFS(Kita[Čekio suma],Kita[Didžiosios knygos kodas],MėNesio_IšLaidų_Suvestinė[[#This Row],[Didžiosios knygos kodas]],Kita[Čekio prašymo inicijavimo data],\">=\"&DATEVALUE(MėNesio_IšLaidų_Suvestinė[[#Headers],[Lapkritis]]&\" 1, \"&_xlfn.SINGLE(_METAI)),Kita[Čekio prašymo inicijavimo data],\"<=\"&N$4)","v":{"v":0,"d":"0.00 EUR"}},{"$f":"SUMIFS(ItemizedExpenses[Čekio suma],ItemizedExpenses[Didžiosios knygos kodas],MėNesio_IšLaidų_Suvestinė[[#This Row],[Didžiosios knygos kodas]],ItemizedExpenses[Sąskaitos faktūros išrašymo data],\">=\"&O$3,ItemizedExpenses[Sąskaitos faktūros išrašymo data],\"<=\"&O$4)+SUMIFS(Kita[Čekio suma],Kita[Didžiosios knygos kodas],MėNesio_IšLaidų_Suvestinė[[#This Row],[Didžiosios knygos kodas]],Kita[Čekio prašymo inicijavimo data],\">=\"&DATEVALUE(MėNesio_IšLaidų_Suvestinė[[#Headers],[Gruodis]]&\" 1, \"&_xlfn.SINGLE(_METAI)),Kita[Čekio prašymo inicijavimo data],\"<=\"&O$4)","v":{"v":0,"d":"0.00 EUR"}},{"$f":"SUM(MėNesio_IšLaidų_Suvestinė[[#This Row],[Sausis]:[Gruodis]])","v":{"v":0,"d":"0.00 EUR"}}]
[null,10000,"Rinkodara",{"$f":"SUMIFS(ItemizedExpenses[Čekio suma],ItemizedExpenses[Didžiosios knygos kodas],MėNesio_IšLaidų_Suvestinė[[#This Row],[Didžiosios knygos kodas]],ItemizedExpenses[Sąskaitos faktūros išrašymo data],\">=\"&D$3,ItemizedExpenses[Sąskaitos faktūros išrašymo data],\"<=\"&D$4)+SUMIFS(Kita[Čekio suma],Kita[Didžiosios knygos kodas],MėNesio_IšLaidų_Suvestinė[[#This Row],[Didžiosios knygos kodas]],Kita[Čekio prašymo inicijavimo data],\">=\"&DATEVALUE(MėNesio_IšLaidų_Suvestinė[[#Headers],[Sausis]]&\" 1, \"&_xlfn.SINGLE(_METAI)),Kita[Čekio prašymo inicijavimo data],\"<=\"&D$4)","v":{"v":0,"d":"0.00 EUR"}},{"$f":"SUMIFS(ItemizedExpenses[Čekio suma],ItemizedExpenses[Didžiosios knygos kodas],MėNesio_IšLaidų_Suvestinė[[#This Row],[Didžiosios knygos kodas]],ItemizedExpenses[Sąskaitos faktūros išrašymo data],\">=\"&E$3,ItemizedExpenses[Sąskaitos faktūros išrašymo data],\"<=\"&E$4)+SUMIFS(Kita[Čekio suma],Kita[Didžiosios knygos kodas],MėNesio_IšLaidų_Suvestinė[[#This Row],[Didžiosios knygos kodas]],Kita[Čekio prašymo inicijavimo data],\">=\"&DATEVALUE(MėNesio_IšLaidų_Suvestinė[[#Headers],[Vasaris]]&\" 1, \"&_xlfn.SINGLE(_METAI)),Kita[Čekio prašymo inicijavimo data],\"<=\"&E$4)","v":{"v":0,"d":"0.00 EUR"}},{"$f":"SUMIFS(ItemizedExpenses[Čekio suma],ItemizedExpenses[Didžiosios knygos kodas],MėNesio_IšLaidų_Suvestinė[[#This Row],[Didžiosios knygos kodas]],ItemizedExpenses[Sąskaitos faktūros išrašymo data],\">=\"&F$3,ItemizedExpenses[Sąskaitos faktūros išrašymo data],\"<=\"&F$4)+SUMIFS(Kita[Čekio suma],Kita[Didžiosios knygos kodas],MėNesio_IšLaidų_Suvestinė[[#This Row],[Didžiosios knygos kodas]],Kita[Čekio prašymo inicijavimo data],\">=\"&DATEVALUE(MėNesio_IšLaidų_Suvestinė[[#Headers],[Kovas]]&\" 1, \"&_xlfn.SINGLE(_METAI)),Kita[Čekio prašymo inicijavimo data],\"<=\"&F$4)","v":{"v":0,"d":"0.00 EUR"}},{"$f":"SUMIFS(ItemizedExpenses[Čekio suma],ItemizedExpenses[Didžiosios knygos kodas],MėNesio_IšLaidų_Suvestinė[[#This Row],[Didžiosios knygos kodas]],ItemizedExpenses[Sąskaitos faktūros išrašymo data],\">=\"&G$3,ItemizedExpenses[Sąskaitos faktūros išrašymo data],\"<=\"&G$4)+SUMIFS(Kita[Čekio suma],Kita[Didžiosios knygos kodas],MėNesio_IšLaidų_Suvestinė[[#This Row],[Didžiosios knygos kodas]],Kita[Čekio prašymo inicijavimo data],\">=\"&DATEVALUE(MėNesio_IšLaidų_Suvestinė[[#Headers],[Balandis]]&\" 1, \"&_xlfn.SINGLE(_METAI)),Kita[Čekio prašymo inicijavimo data],\"<=\"&G$4)","v":{"v":0,"d":"0.00 EUR"}},{"$f":"SUMIFS(ItemizedExpenses[Čekio suma],ItemizedExpenses[Didžiosios knygos kodas],MėNesio_IšLaidų_Suvestinė[[#This Row],[Didžiosios knygos kodas]],ItemizedExpenses[Sąskaitos faktūros išrašymo data],\">=\"&H$3,ItemizedExpenses[Sąskaitos faktūros išrašymo data],\"<=\"&H$4)+SUMIFS(Kita[Čekio suma],Kita[Didžiosios knygos kodas],MėNesio_IšLaidų_Suvestinė[[#This Row],[Didžiosios knygos kodas]],Kita[Čekio prašymo inicijavimo data],\">=\"&DATEVALUE(MėNesio_IšLaidų_Suvestinė[[#Headers],[Gegužė]]&\" 1, \"&_xlfn.SINGLE(_METAI)),Kita[Čekio prašymo inicijavimo data],\"<=\"&H$4)","v":{"v":0,"d":"0.00 EUR"}},{"$f":"SUMIFS(ItemizedExpenses[Čekio suma],ItemizedExpenses[Didžiosios knygos kodas],MėNesio_IšLaidų_Suvestinė[[#This Row],[Didžiosios knygos kodas]],ItemizedExpenses[Sąskaitos faktūros išrašymo data],\">=\"&I$3,ItemizedExpenses[Sąskaitos faktūros išrašymo data],\"<=\"&I$4)+SUMIFS(Kita[Čekio suma],Kita[Didžiosios knygos kodas],MėNesio_IšLaidų_Suvestinė[[#This Row],[Didžiosios knygos kodas]],Kita[Čekio prašymo inicijavimo data],\">=\"&DATEVALUE(MėNesio_IšLaidų_Suvestinė[[#Headers],[Birželis]]&\" 1, \"&_xlfn.SINGLE(_METAI)),Kita[Čekio prašymo inicijavimo data],\"<=\"&I$4)","v":{"v":0,"d":"0.00 EUR"}},{"$f":"SUMIFS(ItemizedExpenses[Čekio suma],ItemizedExpenses[Didžiosios knygos kodas],MėNesio_IšLaidų_Suvestinė[[#This Row],[Didžiosios knygos kodas]],ItemizedExpenses[Sąskaitos faktūros išrašymo data],\">=\"&J$3,ItemizedExpenses[Sąskaitos faktūros išrašymo data],\"<=\"&J$4)+SUMIFS(Kita[Čekio suma],Kita[Didžiosios knygos kodas],MėNesio_IšLaidų_Suvestinė[[#This Row],[Didžiosios knygos kodas]],Kita[Čekio prašymo inicijavimo data],\">=\"&DATEVALUE(MėNesio_IšLaidų_Suvestinė[[#Headers],[Liepa]]&\" 1, \"&_xlfn.SINGLE(_METAI)),Kita[Čekio prašymo inicijavimo data],\"<=\"&J$4)","v":{"v":0,"d":"0.00 EUR"}},{"$f":"SUMIFS(ItemizedExpenses[Čekio suma],ItemizedExpenses[Didžiosios knygos kodas],MėNesio_IšLaidų_Suvestinė[[#This Row],[Didžiosios knygos kodas]],ItemizedExpenses[Sąskaitos faktūros išrašymo data],\">=\"&K$3,ItemizedExpenses[Sąskaitos faktūros išrašymo data],\"<=\"&K$4)+SUMIFS(Kita[Čekio suma],Kita[Didžiosios knygos kodas],MėNesio_IšLaidų_Suvestinė[[#This Row],[Didžiosios knygos kodas]],Kita[Čekio prašymo inicijavimo data],\">=\"&DATEVALUE(MėNesio_IšLaidų_Suvestinė[[#Headers],[Rugpjūtis]]&\" 1, \"&_xlfn.SINGLE(_METAI)),Kita[Čekio prašymo inicijavimo data],\"<=\"&K$4)","v":{"v":0,"d":"0.00 EUR"}},{"$f":"SUMIFS(ItemizedExpenses[Čekio suma],ItemizedExpenses[Didžiosios knygos kodas],MėNesio_IšLaidų_Suvestinė[[#This Row],[Didžiosios knygos kodas]],ItemizedExpenses[Sąskaitos faktūros išrašymo data],\">=\"&L$3,ItemizedExpenses[Sąskaitos faktūros išrašymo data],\"<=\"&L$4)+SUMIFS(Kita[Čekio suma],Kita[Didžiosios knygos kodas],MėNesio_IšLaidų_Suvestinė[[#This Row],[Didžiosios knygos kodas]],Kita[Čekio prašymo inicijavimo data],\">=\"&DATEVALUE(MėNesio_IšLaidų_Suvestinė[[#Headers],[Rugsėjis]]&\" 1, \"&_xlfn.SINGLE(_METAI)),Kita[Čekio prašymo inicijavimo data],\"<=\"&L$4)","v":{"v":0,"d":"0.00 EUR"}},{"$f":"SUMIFS(ItemizedExpenses[Čekio suma],ItemizedExpenses[Didžiosios knygos kodas],MėNesio_IšLaidų_Suvestinė[[#This Row],[Didžiosios knygos kodas]],ItemizedExpenses[Sąskaitos faktūros išrašymo data],\">=\"&M$3,ItemizedExpenses[Sąskaitos faktūros išrašymo data],\"<=\"&M$4)+SUMIFS(Kita[Čekio suma],Kita[Didžiosios knygos kodas],MėNesio_IšLaidų_Suvestinė[[#This Row],[Didžiosios knygos kodas]],Kita[Čekio prašymo inicijavimo data],\">=\"&DATEVALUE(MėNesio_IšLaidų_Suvestinė[[#Headers],[Spalis]]&\" 1, \"&_xlfn.SINGLE(_METAI)),Kita[Čekio prašymo inicijavimo data],\"<=\"&M$4)","v":{"v":0,"d":"0.00 EUR"}},{"$f":"SUMIFS(ItemizedExpenses[Čekio suma],ItemizedExpenses[Didžiosios knygos kodas],MėNesio_IšLaidų_Suvestinė[[#This Row],[Didžiosios knygos kodas]],ItemizedExpenses[Sąskaitos faktūros išrašymo data],\">=\"&N$3,ItemizedExpenses[Sąskaitos faktūros išrašymo data],\"<=\"&N$4)+SUMIFS(Kita[Čekio suma],Kita[Didžiosios knygos kodas],MėNesio_IšLaidų_Suvestinė[[#This Row],[Didžiosios knygos kodas]],Kita[Čekio prašymo inicijavimo data],\">=\"&DATEVALUE(MėNesio_IšLaidų_Suvestinė[[#Headers],[Lapkritis]]&\" 1, \"&_xlfn.SINGLE(_METAI)),Kita[Čekio prašymo inicijavimo data],\"<=\"&N$4)","v":{"v":0,"d":"0.00 EUR"}},{"$f":"SUMIFS(ItemizedExpenses[Čekio suma],ItemizedExpenses[Didžiosios knygos kodas],MėNesio_IšLaidų_Suvestinė[[#This Row],[Didžiosios knygos kodas]],ItemizedExpenses[Sąskaitos faktūros išrašymo data],\">=\"&O$3,ItemizedExpenses[Sąskaitos faktūros išrašymo data],\"<=\"&O$4)+SUMIFS(Kita[Čekio suma],Kita[Didžiosios knygos kodas],MėNesio_IšLaidų_Suvestinė[[#This Row],[Didžiosios knygos kodas]],Kita[Čekio prašymo inicijavimo data],\">=\"&DATEVALUE(MėNesio_IšLaidų_Suvestinė[[#Headers],[Gruodis]]&\" 1, \"&_xlfn.SINGLE(_METAI)),Kita[Čekio prašymo inicijavimo data],\"<=\"&O$4)","v":{"v":0,"d":"0.00 EUR"}},{"$f":"SUM(MėNesio_IšLaidų_Suvestinė[[#This Row],[Sausis]:[Gruodis]])","v":{"v":0,"d":"0.00 EUR"}}]
[null,11000,"Labdara",{"$f":"SUMIFS(ItemizedExpenses[Čekio suma],ItemizedExpenses[Didžiosios knygos kodas],MėNesio_IšLaidų_Suvestinė[[#This Row],[Didžiosios knygos kodas]],ItemizedExpenses[Sąskaitos faktūros išrašymo data],\">=\"&D$3,ItemizedExpenses[Sąskaitos faktūros išrašymo data],\"<=\"&D$4)+SUMIFS(Kita[Čekio suma],Kita[Didžiosios knygos kodas],MėNesio_IšLaidų_Suvestinė[[#This Row],[Didžiosios knygos kodas]],Kita[Čekio prašymo inicijavimo data],\">=\"&DATEVALUE(MėNesio_IšLaidų_Suvestinė[[#Headers],[Sausis]]&\" 1, \"&_xlfn.SINGLE(_METAI)),Kita[Čekio prašymo inicijavimo data],\"<=\"&D$4)","v":{"v":0,"d":"0.00 EUR"}},{"$f":"SUMIFS(ItemizedExpenses[Čekio suma],ItemizedExpenses[Didžiosios knygos kodas],MėNesio_IšLaidų_Suvestinė[[#This Row],[Didžiosios knygos kodas]],ItemizedExpenses[Sąskaitos faktūros išrašymo data],\">=\"&E$3,ItemizedExpenses[Sąskaitos faktūros išrašymo data],\"<=\"&E$4)+SUMIFS(Kita[Čekio suma],Kita[Didžiosios knygos kodas],MėNesio_IšLaidų_Suvestinė[[#This Row],[Didžiosios knygos kodas]],Kita[Čekio prašymo inicijavimo data],\">=\"&DATEVALUE(MėNesio_IšLaidų_Suvestinė[[#Headers],[Vasaris]]&\" 1, \"&_xlfn.SINGLE(_METAI)),Kita[Čekio prašymo inicijavimo data],\"<=\"&E$4)","v":{"v":0,"d":"0.00 EUR"}},{"$f":"SUMIFS(ItemizedExpenses[Čekio suma],ItemizedExpenses[Didžiosios knygos kodas],MėNesio_IšLaidų_Suvestinė[[#This Row],[Didžiosios knygos kodas]],ItemizedExpenses[Sąskaitos faktūros išrašymo data],\">=\"&F$3,ItemizedExpenses[Sąskaitos faktūros išrašymo data],\"<=\"&F$4)+SUMIFS(Kita[Čekio suma],Kita[Didžiosios knygos kodas],MėNesio_IšLaidų_Suvestinė[[#This Row],[Didžiosios knygos kodas]],Kita[Čekio prašymo inicijavimo data],\">=\"&DATEVALUE(MėNesio_IšLaidų_Suvestinė[[#Headers],[Kovas]]&\" 1, \"&_xlfn.SINGLE(_METAI)),Kita[Čekio prašymo inicijavimo data],\"<=\"&F$4)","v":{"v":0,"d":"0.00 EUR"}},{"$f":"SUMIFS(ItemizedExpenses[Čekio suma],ItemizedExpenses[Didžiosios knygos kodas],MėNesio_IšLaidų_Suvestinė[[#This Row],[Didžiosios knygos kodas]],ItemizedExpenses[Sąskaitos faktūros išrašymo data],\">=\"&G$3,ItemizedExpenses[Sąskaitos faktūros išrašymo data],\"<=\"&G$4)+SUMIFS(Kita[Čekio suma],Kita[Didžiosios knygos kodas],MėNesio_IšLaidų_Suvestinė[[#This Row],[Didžiosios knygos kodas]],Kita[Čekio prašymo inicijavimo data],\">=\"&DATEVALUE(MėNesio_IšLaidų_Suvestinė[[#Headers],[Balandis]]&\" 1, \"&_xlfn.SINGLE(_METAI)),Kita[Čekio prašymo inicijavimo data],\"<=\"&G$4)","v":{"v":0,"d":"0.00 EUR"}},{"$f":"SUMIFS(ItemizedExpenses[Čekio suma],ItemizedExpenses[Didžiosios knygos kodas],MėNesio_IšLaidų_Suvestinė[[#This Row],[Didžiosios knygos kodas]],ItemizedExpenses[Sąskaitos faktūros išrašymo data],\">=\"&H$3,ItemizedExpenses[Sąskaitos faktūros išrašymo data],\"<=\"&H$4)+SUMIFS(Kita[Čekio suma],Kita[Didžiosios knygos kodas],MėNesio_IšLaidų_Suvestinė[[#This Row],[Didžiosios knygos kodas]],Kita[Čekio prašymo inicijavimo data],\">=\"&DATEVALUE(MėNesio_IšLaidų_Suvestinė[[#Headers],[Gegužė]]&\" 1, \"&_xlfn.SINGLE(_METAI)),Kita[Čekio prašymo inicijavimo data],\"<=\"&H$4)","v":{"v":0,"d":"0.00 EUR"}},{"$f":"SUMIFS(ItemizedExpenses[Čekio suma],ItemizedExpenses[Didžiosios knygos kodas],MėNesio_IšLaidų_Suvestinė[[#This Row],[Didžiosios knygos kodas]],ItemizedExpenses[Sąskaitos faktūros išrašymo data],\">=\"&I$3,ItemizedExpenses[Sąskaitos faktūros išrašymo data],\"<=\"&I$4)+SUMIFS(Kita[Čekio suma],Kita[Didžiosios knygos kodas],MėNesio_IšLaidų_Suvestinė[[#This Row],[Didžiosios knygos kodas]],Kita[Čekio prašymo inicijavimo data],\">=\"&DATEVALUE(MėNesio_IšLaidų_Suvestinė[[#Headers],[Birželis]]&\" 1, \"&_xlfn.SINGLE(_METAI)),Kita[Čekio prašymo inicijavimo data],\"<=\"&I$4)","v":{"v":0,"d":"0.00 EUR"}},{"$f":"SUMIFS(ItemizedExpenses[Čekio suma],ItemizedExpenses[Didžiosios knygos kodas],MėNesio_IšLaidų_Suvestinė[[#This Row],[Didžiosios knygos kodas]],ItemizedExpenses[Sąskaitos faktūros išrašymo data],\">=\"&J$3,ItemizedExpenses[Sąskaitos faktūros išrašymo data],\"<=\"&J$4)+SUMIFS(Kita[Čekio suma],Kita[Didžiosios knygos kodas],MėNesio_IšLaidų_Suvestinė[[#This Row],[Didžiosios knygos kodas]],Kita[Čekio prašymo inicijavimo data],\">=\"&DATEVALUE(MėNesio_IšLaidų_Suvestinė[[#Headers],[Liepa]]&\" 1, \"&_xlfn.SINGLE(_METAI)),Kita[Čekio prašymo inicijavimo data],\"<=\"&J$4)","v":{"v":0,"d":"0.00 EUR"}},{"$f":"SUMIFS(ItemizedExpenses[Čekio suma],ItemizedExpenses[Didžiosios knygos kodas],MėNesio_IšLaidų_Suvestinė[[#This Row],[Didžiosios knygos kodas]],ItemizedExpenses[Sąskaitos faktūros išrašymo data],\">=\"&K$3,ItemizedExpenses[Sąskaitos faktūros išrašymo data],\"<=\"&K$4)+SUMIFS(Kita[Čekio suma],Kita[Didžiosios knygos kodas],MėNesio_IšLaidų_Suvestinė[[#This Row],[Didžiosios knygos kodas]],Kita[Čekio prašymo inicijavimo data],\">=\"&DATEVALUE(MėNesio_IšLaidų_Suvestinė[[#Headers],[Rugpjūtis]]&\" 1, \"&_xlfn.SINGLE(_METAI)),Kita[Čekio prašymo inicijavimo data],\"<=\"&K$4)","v":{"v":0,"d":"0.00 EUR"}},{"$f":"SUMIFS(ItemizedExpenses[Čekio suma],ItemizedExpenses[Didžiosios knygos kodas],MėNesio_IšLaidų_Suvestinė[[#This Row],[Didžiosios knygos kodas]],ItemizedExpenses[Sąskaitos faktūros išrašymo data],\">=\"&L$3,ItemizedExpenses[Sąskaitos faktūros išrašymo data],\"<=\"&L$4)+SUMIFS(Kita[Čekio suma],Kita[Didžiosios knygos kodas],MėNesio_IšLaidų_Suvestinė[[#This Row],[Didžiosios knygos kodas]],Kita[Čekio prašymo inicijavimo data],\">=\"&DATEVALUE(MėNesio_IšLaidų_Suvestinė[[#Headers],[Rugsėjis]]&\" 1, \"&_xlfn.SINGLE(_METAI)),Kita[Čekio prašymo inicijavimo data],\"<=\"&L$4)","v":{"v":0,"d":"0.00 EUR"}},{"$f":"SUMIFS(ItemizedExpenses[Čekio suma],ItemizedExpenses[Didžiosios knygos kodas],MėNesio_IšLaidų_Suvestinė[[#This Row],[Didžiosios knygos kodas]],ItemizedExpenses[Sąskaitos faktūros išrašymo data],\">=\"&M$3,ItemizedExpenses[Sąskaitos faktūros išrašymo data],\"<=\"&M$4)+SUMIFS(Kita[Čekio suma],Kita[Didžiosios knygos kodas],MėNesio_IšLaidų_Suvestinė[[#This Row],[Didžiosios knygos kodas]],Kita[Čekio prašymo inicijavimo data],\">=\"&DATEVALUE(MėNesio_IšLaidų_Suvestinė[[#Headers],[Spalis]]&\" 1, \"&_xlfn.SINGLE(_METAI)),Kita[Čekio prašymo inicijavimo data],\"<=\"&M$4)","v":{"v":0,"d":"0.00 EUR"}},{"$f":"SUMIFS(ItemizedExpenses[Čekio suma],ItemizedExpenses[Didžiosios knygos kodas],MėNesio_IšLaidų_Suvestinė[[#This Row],[Didžiosios knygos kodas]],ItemizedExpenses[Sąskaitos faktūros išrašymo data],\">=\"&N$3,ItemizedExpenses[Sąskaitos faktūros išrašymo data],\"<=\"&N$4)+SUMIFS(Kita[Čekio suma],Kita[Didžiosios knygos kodas],MėNesio_IšLaidų_Suvestinė[[#This Row],[Didžiosios knygos kodas]],Kita[Čekio prašymo inicijavimo data],\">=\"&DATEVALUE(MėNesio_IšLaidų_Suvestinė[[#Headers],[Lapkritis]]&\" 1, \"&_xlfn.SINGLE(_METAI)),Kita[Čekio prašymo inicijavimo data],\"<=\"&N$4)","v":{"v":0,"d":"0.00 EUR"}},{"$f":"SUMIFS(ItemizedExpenses[Čekio suma],ItemizedExpenses[Didžiosios knygos kodas],MėNesio_IšLaidų_Suvestinė[[#This Row],[Didžiosios knygos kodas]],ItemizedExpenses[Sąskaitos faktūros išrašymo data],\">=\"&O$3,ItemizedExpenses[Sąskaitos faktūros išrašymo data],\"<=\"&O$4)+SUMIFS(Kita[Čekio suma],Kita[Didžiosios knygos kodas],MėNesio_IšLaidų_Suvestinė[[#This Row],[Didžiosios knygos kodas]],Kita[Čekio prašymo inicijavimo data],\">=\"&DATEVALUE(MėNesio_IšLaidų_Suvestinė[[#Headers],[Gruodis]]&\" 1, \"&_xlfn.SINGLE(_METAI)),Kita[Čekio prašymo inicijavimo data],\"<=\"&O$4)","v":{"v":0,"d":"0.00 EUR"}},{"$f":"SUM(MėNesio_IšLaidų_Suvestinė[[#This Row],[Sausis]:[Gruodis]])","v":{"v":0,"d":"0.00 EUR"}}]
[null,12000,"Rėmimas",{"$f":"SUMIFS(ItemizedExpenses[Čekio suma],ItemizedExpenses[Didžiosios knygos kodas],MėNesio_IšLaidų_Suvestinė[[#This Row],[Didžiosios knygos kodas]],ItemizedExpenses[Sąskaitos faktūros išrašymo data],\">=\"&D$3,ItemizedExpenses[Sąskaitos faktūros išrašymo data],\"<=\"&D$4)+SUMIFS(Kita[Čekio suma],Kita[Didžiosios knygos kodas],MėNesio_IšLaidų_Suvestinė[[#This Row],[Didžiosios knygos kodas]],Kita[Čekio prašymo inicijavimo data],\">=\"&DATEVALUE(MėNesio_IšLaidų_Suvestinė[[#Headers],[Sausis]]&\" 1, \"&_xlfn.SINGLE(_METAI)),Kita[Čekio prašymo inicijavimo data],\"<=\"&D$4)","v":{"v":0,"d":"0.00 EUR"}},{"$f":"SUMIFS(ItemizedExpenses[Čekio suma],ItemizedExpenses[Didžiosios knygos kodas],MėNesio_IšLaidų_Suvestinė[[#This Row],[Didžiosios knygos kodas]],ItemizedExpenses[Sąskaitos faktūros išrašymo data],\">=\"&E$3,ItemizedExpenses[Sąskaitos faktūros išrašymo data],\"<=\"&E$4)+SUMIFS(Kita[Čekio suma],Kita[Didžiosios knygos kodas],MėNesio_IšLaidų_Suvestinė[[#This Row],[Didžiosios knygos kodas]],Kita[Čekio prašymo inicijavimo data],\">=\"&DATEVALUE(MėNesio_IšLaidų_Suvestinė[[#Headers],[Vasaris]]&\" 1, \"&_xlfn.SINGLE(_METAI)),Kita[Čekio prašymo inicijavimo data],\"<=\"&E$4)","v":{"v":0,"d":"0.00 EUR"}},{"$f":"SUMIFS(ItemizedExpenses[Čekio suma],ItemizedExpenses[Didžiosios knygos kodas],MėNesio_IšLaidų_Suvestinė[[#This Row],[Didžiosios knygos kodas]],ItemizedExpenses[Sąskaitos faktūros išrašymo data],\">=\"&F$3,ItemizedExpenses[Sąskaitos faktūros išrašymo data],\"<=\"&F$4)+SUMIFS(Kita[Čekio suma],Kita[Didžiosios knygos kodas],MėNesio_IšLaidų_Suvestinė[[#This Row],[Didžiosios knygos kodas]],Kita[Čekio prašymo inicijavimo data],\">=\"&DATEVALUE(MėNesio_IšLaidų_Suvestinė[[#Headers],[Kovas]]&\" 1, \"&_xlfn.SINGLE(_METAI)),Kita[Čekio prašymo inicijavimo data],\"<=\"&F$4)","v":{"v":0,"d":"0.00 EUR"}},{"$f":"SUMIFS(ItemizedExpenses[Čekio suma],ItemizedExpenses[Didžiosios knygos kodas],MėNesio_IšLaidų_Suvestinė[[#This Row],[Didžiosios knygos kodas]],ItemizedExpenses[Sąskaitos faktūros išrašymo data],\">=\"&G$3,ItemizedExpenses[Sąskaitos faktūros išrašymo data],\"<=\"&G$4)+SUMIFS(Kita[Čekio suma],Kita[Didžiosios knygos kodas],MėNesio_IšLaidų_Suvestinė[[#This Row],[Didžiosios knygos kodas]],Kita[Čekio prašymo inicijavimo data],\">=\"&DATEVALUE(MėNesio_IšLaidų_Suvestinė[[#Headers],[Balandis]]&\" 1, \"&_xlfn.SINGLE(_METAI)),Kita[Čekio prašymo inicijavimo data],\"<=\"&G$4)","v":{"v":0,"d":"0.00 EUR"}},{"$f":"SUMIFS(ItemizedExpenses[Čekio suma],ItemizedExpenses[Didžiosios knygos kodas],MėNesio_IšLaidų_Suvestinė[[#This Row],[Didžiosios knygos kodas]],ItemizedExpenses[Sąskaitos faktūros išrašymo data],\">=\"&H$3,ItemizedExpenses[Sąskaitos faktūros išrašymo data],\"<=\"&H$4)+SUMIFS(Kita[Čekio suma],Kita[Didžiosios knygos kodas],MėNesio_IšLaidų_Suvestinė[[#This Row],[Didžiosios knygos kodas]],Kita[Čekio prašymo inicijavimo data],\">=\"&DATEVALUE(MėNesio_IšLaidų_Suvestinė[[#Headers],[Gegužė]]&\" 1, \"&_xlfn.SINGLE(_METAI)),Kita[Čekio prašymo inicijavimo data],\"<=\"&H$4)","v":{"v":0,"d":"0.00 EUR"}},{"$f":"SUMIFS(ItemizedExpenses[Čekio suma],ItemizedExpenses[Didžiosios knygos kodas],MėNesio_IšLaidų_Suvestinė[[#This Row],[Didžiosios knygos kodas]],ItemizedExpenses[Sąskaitos faktūros išrašymo data],\">=\"&I$3,ItemizedExpenses[Sąskaitos faktūros išrašymo data],\"<=\"&I$4)+SUMIFS(Kita[Čekio suma],Kita[Didžiosios knygos kodas],MėNesio_IšLaidų_Suvestinė[[#This Row],[Didžiosios knygos kodas]],Kita[Čekio prašymo inicijavimo data],\">=\"&DATEVALUE(MėNesio_IšLaidų_Suvestinė[[#Headers],[Birželis]]&\" 1, \"&_xlfn.SINGLE(_METAI)),Kita[Čekio prašymo inicijavimo data],\"<=\"&I$4)","v":{"v":0,"d":"0.00 EUR"}},{"$f":"SUMIFS(ItemizedExpenses[Čekio suma],ItemizedExpenses[Didžiosios knygos kodas],MėNesio_IšLaidų_Suvestinė[[#This Row],[Didžiosios knygos kodas]],ItemizedExpenses[Sąskaitos faktūros išrašymo data],\">=\"&J$3,ItemizedExpenses[Sąskaitos faktūros išrašymo data],\"<=\"&J$4)+SUMIFS(Kita[Čekio suma],Kita[Didžiosios knygos kodas],MėNesio_IšLaidų_Suvestinė[[#This Row],[Didžiosios knygos kodas]],Kita[Čekio prašymo inicijavimo data],\">=\"&DATEVALUE(MėNesio_IšLaidų_Suvestinė[[#Headers],[Liepa]]&\" 1, \"&_xlfn.SINGLE(_METAI)),Kita[Čekio prašymo inicijavimo data],\"<=\"&J$4)","v":{"v":0,"d":"0.00 EUR"}},{"$f":"SUMIFS(ItemizedExpenses[Čekio suma],ItemizedExpenses[Didžiosios knygos kodas],MėNesio_IšLaidų_Suvestinė[[#This Row],[Didžiosios knygos kodas]],ItemizedExpenses[Sąskaitos faktūros išrašymo data],\">=\"&K$3,ItemizedExpenses[Sąskaitos faktūros išrašymo data],\"<=\"&K$4)+SUMIFS(Kita[Čekio suma],Kita[Didžiosios knygos kodas],MėNesio_IšLaidų_Suvestinė[[#This Row],[Didžiosios knygos kodas]],Kita[Čekio prašymo inicijavimo data],\">=\"&DATEVALUE(MėNesio_IšLaidų_Suvestinė[[#Headers],[Rugpjūtis]]&\" 1, \"&_xlfn.SINGLE(_METAI)),Kita[Čekio prašymo inicijavimo data],\"<=\"&K$4)","v":{"v":0,"d":"0.00 EUR"}},{"$f":"SUMIFS(ItemizedExpenses[Čekio suma],ItemizedExpenses[Didžiosios knygos kodas],MėNesio_IšLaidų_Suvestinė[[#This Row],[Didžiosios knygos kodas]],ItemizedExpenses[Sąskaitos faktūros išrašymo data],\">=\"&L$3,ItemizedExpenses[Sąskaitos faktūros išrašymo data],\"<=\"&L$4)+SUMIFS(Kita[Čekio suma],Kita[Didžiosios knygos kodas],MėNesio_IšLaidų_Suvestinė[[#This Row],[Didžiosios knygos kodas]],Kita[Čekio prašymo inicijavimo data],\">=\"&DATEVALUE(MėNesio_IšLaidų_Suvestinė[[#Headers],[Rugsėjis]]&\" 1, \"&_xlfn.SINGLE(_METAI)),Kita[Čekio prašymo inicijavimo data],\"<=\"&L$4)","v":{"v":0,"d":"0.00 EUR"}},{"$f":"SUMIFS(ItemizedExpenses[Čekio suma],ItemizedExpenses[Didžiosios knygos kodas],MėNesio_IšLaidų_Suvestinė[[#This Row],[Didžiosios knygos kodas]],ItemizedExpenses[Sąskaitos faktūros išrašymo data],\">=\"&M$3,ItemizedExpenses[Sąskaitos faktūros išrašymo data],\"<=\"&M$4)+SUMIFS(Kita[Čekio suma],Kita[Didžiosios knygos kodas],MėNesio_IšLaidų_Suvestinė[[#This Row],[Didžiosios knygos kodas]],Kita[Čekio prašymo inicijavimo data],\">=\"&DATEVALUE(MėNesio_IšLaidų_Suvestinė[[#Headers],[Spalis]]&\" 1, \"&_xlfn.SINGLE(_METAI)),Kita[Čekio prašymo inicijavimo data],\"<=\"&M$4)","v":{"v":0,"d":"0.00 EUR"}},{"$f":"SUMIFS(ItemizedExpenses[Čekio suma],ItemizedExpenses[Didžiosios knygos kodas],MėNesio_IšLaidų_Suvestinė[[#This Row],[Didžiosios knygos kodas]],ItemizedExpenses[Sąskaitos faktūros išrašymo data],\">=\"&N$3,ItemizedExpenses[Sąskaitos faktūros išrašymo data],\"<=\"&N$4)+SUMIFS(Kita[Čekio suma],Kita[Didžiosios knygos kodas],MėNesio_IšLaidų_Suvestinė[[#This Row],[Didžiosios knygos kodas]],Kita[Čekio prašymo inicijavimo data],\">=\"&DATEVALUE(MėNesio_IšLaidų_Suvestinė[[#Headers],[Lapkritis]]&\" 1, \"&_xlfn.SINGLE(_METAI)),Kita[Čekio prašymo inicijavimo data],\"<=\"&N$4)","v":{"v":0,"d":"0.00 EUR"}},{"$f":"SUMIFS(ItemizedExpenses[Čekio suma],ItemizedExpenses[Didžiosios knygos kodas],MėNesio_IšLaidų_Suvestinė[[#This Row],[Didžiosios knygos kodas]],ItemizedExpenses[Sąskaitos faktūros išrašymo data],\">=\"&O$3,ItemizedExpenses[Sąskaitos faktūros išrašymo data],\"<=\"&O$4)+SUMIFS(Kita[Čekio suma],Kita[Didžiosios knygos kodas],MėNesio_IšLaidų_Suvestinė[[#This Row],[Didžiosios knygos kodas]],Kita[Čekio prašymo inicijavimo data],\">=\"&DATEVALUE(MėNesio_IšLaidų_Suvestinė[[#Headers],[Gruodis]]&\" 1, \"&_xlfn.SINGLE(_METAI)),Kita[Čekio prašymo inicijavimo data],\"<=\"&O$4)","v":{"v":0,"d":"0.00 EUR"}},{"$f":"SUM(MėNesio_IšLaidų_Suvestinė[[#This Row],[Sausis]:[Gruodis]])","v":{"v":0,"d":"0.00 EUR"}}]
[null,"Suma",null,{"$f":"SUBTOTAL(109,MėNesio_IšLaidų_Suvestinė[Sausis])","v":{"v":0,"d":"0.00 EUR"}},{"$f":"SUBTOTAL(109,MėNesio_IšLaidų_Suvestinė[Vasaris])","v":{"v":0,"d":"0.00 EUR"}},{"$f":"SUBTOTAL(109,MėNesio_IšLaidų_Suvestinė[Kovas])","v":{"v":0,"d":"0.00 EUR"}},{"$f":"SUBTOTAL(109,MėNesio_IšLaidų_Suvestinė[Balandis])","v":{"v":0,"d":"0.00 EUR"}},{"$f":"SUBTOTAL(109,MėNesio_IšLaidų_Suvestinė[Gegužė])","v":{"v":0,"d":"0.00 EUR"}},{"$f":"SUBTOTAL(109,MėNesio_IšLaidų_Suvestinė[Birželis])","v":{"v":0,"d":"0.00 EUR"}},{"$f":"SUBTOTAL(109,MėNesio_IšLaidų_Suvestinė[Liepa])","v":{"v":0,"d":"0.00 EUR"}},{"$f":"SUBTOTAL(109,MėNesio_IšLaidų_Suvestinė[Rugpjūtis])","v":{"v":0,"d":"0.00 EUR"}},{"$f":"SUBTOTAL(109,MėNesio_IšLaidų_Suvestinė[Rugsėjis])","v":{"v":0,"d":"0.00 EUR"}},{"$f":"SUBTOTAL(109,MėNesio_IšLaidų_Suvestinė[Spalis])","v":{"v":0,"d":"0.00 EUR"}},{"$f":"SUBTOTAL(109,MėNesio_IšLaidų_Suvestinė[Lapkritis])","v":{"v":0,"d":"0.00 EUR"}},{"$f":"SUBTOTAL(109,MėNesio_IšLaidų_Suvestinė[Gruodis])","v":{"v":0,"d":"0.00 EUR"}},{"$f":"SUBTOTAL(109,MėNesio_IšLaidų_Suvestinė[Suma])","v":{"v":0,"d":"0.00 EUR"}}]

{"sheet":"DETALIZUOTOS IŠLAIDOS","index":2,"n_rows":6,"n_cols":10,"rows_kept":6,"merged":[[1,1,1,9],[2,1,2,5],[2,6,2,9]]}
[null,"MĖNESIO IŠLAIDŲ SUVESTINĖ","LABDARA IR RĖMIMAS"]
[null,"DETALIZUOTOS IŠLAIDOS"]
[null,"Duomenų filtras, skirtas filtruoti duomenis pagal parinktį Užklausą pateikė, yra šiame laukelyje, o duomenų filtras, filtruojantis duomenis pagal Gavėją, yra langelyje dešinėje.",{"$nulls":4},"Duomenų filtras, skirtas filtruoti duomenis pagal Gavėją, yra šiame langelyje."]
[null,"Didžiosios knygos kodas","Sąskaitos faktūros išrašymo data","Sąskaitos faktūros Nr.","Išrašė","Čekio suma","Pinigų gavėjas","Čekio naudojimas","Mokėjimo būdas","Pateikimo data"]
[null,1000,"Data",100,"Jonas Vitkus",{"v":750.75,"d":"750.75 EUR"},"„Consolidated Messenger“ ","Siuntėjas","Paštu","Data"]
[null,7000,"Data",101,"Andrius Žemaitis",{"v":2500,"d":"2,500.00 EUR"},"„A. Datum Corporation“ ","2 staliniai kompiuteriai","Kreditu","Data"]

{"sheet":"LABDARA IR RĖMIMAS","index":3,"n_rows":6,"n_cols":12,"rows_kept":6,"merged":[[1,1,1,11],[2,1,2,5],[2,6,2,11]]}
[null,"DETALIZUOTOS IŠLAIDOS"]
[null,"LABDARA IR RĖMIMAS"]
[null,"Duomenų filtras, skirtas filtruoti duomenis pagal parinktį Užklausą pateikė, yra šiame laukelyje, o duomenų filtras, filtruojantis duomenis pagal Gavėją, yra langelyje dešinėje.",{"$nulls":4},"Duomenų filtras, skirtas filtruoti duomenis pagal Gavėją, yra šiame langelyje."]
[null,"Didžiosios knygos kodas","Čekio prašymo inicijavimo data","Išrašė","Čekio suma","Ankstesnių metų prisidėjimas","Pinigų gavėjas","Paskirtis","Pasirašė","Kategorija","Mokėjimo būdas","Pateikimo data"]
[null,12000,"Data","Ona Grigaitė",{"v":1000,"d":"1,000.00 EUR"},{"v":12,"d":"12.00 EUR"},"Meno mokykla ","Stipendijos","Marija Kairienė","Menai","Čekis","Data"]
[null,11000,"Data","Ona Grigaitė",{"v":2500,"d":"2,500.00 EUR"},{"v":0,"d":"0.00 EUR"},"„Wingtip Toys“ ","Bendruomenė","Laima Banienė","Bendruomenė","Čekis","Data"]